{"text_format":"1","workbook":"xlsx","n_sheets":15,"sheets":["Portada","Presentación-Inf prop","Políticas públicas","Emer. y compromisos","Metodología1","Contra Portada","BASE DE DATOS","Hoja 1"," ","Ficha 1","Ficha 2","Ficha 3","Ficha 4","Hoja1","Hoja2"],"not_rendered":{"charts":0,"images":3,"macros":1,"external_links":0,"defined_names":81,"comments":0,"pivot_tables":0},"unopened":[],"bounds":{"document_bytes":16777216,"sheet_cells":100000,"rows_first":2000,"rows_last":500,"rows_between":2000,"halvings":0,"cell_chars":16384,"cell_head_chars":4096},"cells_cut":0,"cells_raw":0,"read":"whole","date_system":"1900"}

{"sheet":"Portada","index":0,"n_rows":0,"n_cols":0,"rows_kept":0,"cut":false,"hidden":false,"merged":[]}

{"sheet":"Presentación-Inf prop","index":1,"n_rows":164,"n_cols":9,"rows_kept":164,"cut":false,"hidden":false,"merged":[[2,3,2,8],[3,3,3,8],[17,1,18,9],[38,1,38,9],[20,1,20,9],[21,1,21,9],[22,1,22,9],[23,1,23,9],[25,1,25,4],[7,1,7,9],[10,1,15,9],[9,1,9,9],[25,5,25,9],[19,1,19,9],[27,1,27,9],[33,1,33,4],[51,2,51,4],[44,7,44,8],[47,7,47,8],[48,7,48,8],[51,7,51,8],[50,7,50,8],[46,2,46,4],[47,2,47,4],[49,2,49,4],[49,7,49,8],[46,7,46,8],[48,2,48,4],[50,2,50,4],[41,2,41,4],[43,2,43,4],[44,2,44,4],[45,2,45,4],[41,7,41,8],[42,7,42,8],[45,7,45,8],[42,2,42,4],[43,7,43,8],[133,3,133,8],[124,1,124,2],[120,1,120,2],[106,1,106,2],[66,5,66,9],[98,1,98,2],[81,1,81,2],[77,1,77,2],[73,1,73,2],[85,1,85,2],[128,1,128,2],[111,1,111,2],[64,5,64,9],[65,1,65,4],[65,5,65,9],[102,1,102,2],[90,1,90,2],[66,1,66,4],[64,1,64,4],[63,5,63,9],[52,7,52,8],[62,1,62,4],[53,7,53,8],[57,2,57,9],[63,1,63,4],[54,7,54,8],[56,2,56,4],[53,2,53,4],[59,5,59,9],[59,1,59,4],[62,5,62,9],[56,5,56,9],[54,2,54,4],[61,1,61,9],[52,2,52,4],[33,5,33,9],[36,1,36,4],[36,5,36,9],[40,1,40,4],[40,6,40,8],[39,1,39,9]]}
[]
[]
[null,null,null,"REGLAS PARA LA DETERMINACIÓN\nDE LA INFORMACIÓN DE INTERÉS NACIONAL "]
[null,null,null,"Formato Regla Décima. Información Estadística"]
[]
[]
[]
[null,"FORMATO PARA LA PRESENTACIÓN DE PROPUESTAS DE INFORMACIÓN ESTADÍSTICA DE INTERÉS NACIONAL"]
[]
[null,"MARCO LEGAL: "]
[null,"Con fundamento en lo dispuesto por el apartado B del artículo 26 de la Constitución Política de los Estados Unidos Mexicanos y artículos 54, 55 fracciones I y II; 77 fracciones II y 78 de la Ley del Sistema Nacional de Información Estadística y Geográfica (LSNIEG) y, de conformidad con la Regla Décima de las Reglas para la Determinación de la Información de Interés Nacional, emitidas por el Instituto Nacional de Estadística y Geografía, publicadas en el Diario Oficial de la Federación el 2 de agosto de 2010, se establece el presente formato para documentar la información estadística a proponer como de Interés Nacional para el Sistema Nacional de Información Estadística y Geográfica."]
[]
[]
[]
[]
[]
[]
[null,"1. INFORMACIÓN PROPUESTA Y PROPONENTE"]
[]
[null,"Información propuesta: grupo de datos y productos derivados de ellos, definido mediante la especificación de temas, subtemas, universos, cobertura espacial y temporal, periodicidad, escalas, proyecciones, variables u objetos espaciales, clasificaciones y parámetros que sean resultado de un operativo estadístico o geográfico determinado y puesto a consideración de la Junta de Gobierno para ser Información de Interés Nacional;"]
[null,"Grupos de datos estadísticos: conjunto organizado de datos o resultados cuantitativos que se obtienen de las actividades estadísticas a partir de los datos primarios obtenidos de los informantes del sistema relacionados con aspectos demográficos, sociales, económicos y ambientales;"]
[null,"Productos derivados de los datos: estimadores de parámetros (estadísticos), indicadores, conjuntos de estadísticas, tales como: Sistema de Cuentas Nacionales, los grupos de datos geográficos, cartografía básica, cartografía temática, aplicaciones geomáticas, entre otros."]
[null,"Operativo estadístico: procedimiento y esquema técnico para las actividades de recolección (recopilación) de datos (estadística básica) obtenidos a través de un censo, una encuesta por muestreo o de registros administrativos. Los datos son captados mediante la aplicación de un cuestionario o formato de registro a nivel de unidades de una población de estudio, en papel, medios electrónicos o en aquellos que el avance tecnológico permita;"]
[null,"Proyecto estadístico: conjunto de actividades ordenadas que se realiza para producir, integrar, analizar y difundir información estadística que permita cuantificar y caracterizar un universo de estudio o aspecto específico;"]
[]
[null,"1.1 Nombre de la Unidad del Estado o Comité Técnico \n       Especializado que propone la información para ser \n       designada como Información de Interés Nacional:",null,null,null,"Consejo Nacional de Evaluación de la Política de Desarrollo Social (CONEVAL) a través del Comité Técnico Especializado de Información Estadística y Geográfica de Desarrollo Social (CTEIEGDS)"]
[]
[null,"1.2 Tipo de información estadística propuesta:"]
[]
[null,null,null,"1. Grupo de datos estadísticos"]
[null,null,null,"2. Productos derivados de los datos estadísticos"]
[]
[]
[null,"1.3 Denominación de la información propuesta:",null,null,null,"Encuesta Nacional de Ingresos y Gastos de los Hogares"]
[]
[]
[null,"1.4 Objetivo de la información propuesta:",null,null,null,"Proporcionar información sobre la distribución, monto y estructura del ingreso y gasto de los hogares; adicionalmente, ofrece información sobre las características sociodemográficas y ocupacionales de los integrantes del hogar, así como la infraestructura de la vivienda y el equipamiento del hogar."]
[]
[null,"1.5 De los siguientes temas señalados en la LSNIEG, marque las opciones que relacionen a la información \n       propuesta como de Interés Nacional. Si selecciona \"Otro\", especifique el tema:"]
[null,"       (Marque las opciones correspondientes)"]
[null,"Tema ",null,null,null,null,"Tema "]
[null,1,"Población",null,null,null,15,"Trabajo"]
[null,2,"Dinámica demográfica",null,null,null,16,"Ciencia"]
[null,3,"Salud",null,null,null,17,"Tecnología"]
[null,4,"Educación",null,null,null,18,"Atmósfera"]
[null,5,"Empleo",null,null,null,19,"Biodiversidad"]
[null,6,"Distribución del ingreso ",null,null,null,20,"Agua"]
[null,7,"Pobreza",null,null,null,21,"Suelo"]
[null,8,"Seguridad pública",null,null,null,22,"Flora"]
[null,9,"Impartición de justicia",null,null,null,23,"Fauna"]
[null,10,"Gobierno",null,null,null,24,"Residuos peligrosos "]
[null,11,"Vivienda",null,null,null,25,"Residuos sólidos"]
[null,12,"Sistema de Cuentas Nacionales ",null,null,null,26,"Recursos naturales"]
[null,13,"Información financiera",null,null,null,27,"Clima "]
[null,14,"Precios",null,null,null,28,"Otro"]
[]
[null,null,"Si marcó Otro, por favor especifique el tema:",null,null,"Monto y estructura del Gasto de los Hogares. "]
[]
[]
[null,"1.6 Principales usuarios identificados de la información \n       propuesta:",null,null,null,"El gobierno federal, que por ley, tiene que alinear sus programas de combate a la pobreza con los indicadores de pobreza; las entidades federativas, los municipios, la academia y el público en general. \nConsejo Nacional de Evaluación de la Política de Desarrollo Social."]
[]
[null,"2. PROYECTO QUE GENERA LA INFORMACIÓN E INSTITUCIÓN RESPONSABLE\n(Sólo debe ser llenado en el caso de que la información propuesta sea una estadística derivada)"]
[null,"2.1 Nombre de los proyectos estadísticos con los que \n       se genera la información propuesta como de Interés\n       Nacional (fuentes de información):",null,null,null,"2.2 Nombre de las Unidades del Estado responsables de los proyectos \n       estadísticos:\n      "]
[]
[]
[]
[]
[]
[]
[]
[]
[]
[1.1000000000000001]
[null,{"$f":"ISTEXT(#REF!)","v":false},null,null,{"$f":"IF(B74=TRUE,MID(#REF!,1,700),\"No declarado\")","v":"No declarado"}]
[]
[null,0]
[1.2]
[null,{"$f":"ISTEXT(#REF!)","v":false},null,null,{"$f":"IF(B78=TRUE,MID(#REF!,1,700),\"No declarado\")","v":"No declarado"}]
[]
[]
[1.4,null,null,false]
[null,{"$f":"ISTEXT(#REF!)","v":false},null,false,{"$f":"IF(B82=TRUE,MID(#REF!,1,700),\"No declarado\")","v":"No declarado"}]
[null,null,null,false]
[null,null,null,false]
[1.5,null,null,false]
[null,{"$f":"ISTEXT(#REF!)","v":false},null,false,{"$f":"IF(B86=TRUE,MID(#REF!,1,700),\"No declarado\")","v":"No declarado"}]
[null,null,null,false]
[null,null,null,false]
[null,null,null,false]
[1.6,null,null,false]
[null,{"$f":"ISTEXT(F60)","v":true},null,false,{"$f":"IF(B91=TRUE,MID(F60,1,700),\"No declarado\")","v":"El gobierno federal, que por ley, tiene que alinear sus programas de combate a la pobreza con los indicadores de pobreza; las entidades federativas, los municipios, la academia y el público en general. \nConsejo Nacional de Evaluación de la Política de Desarrollo Social."}]
[null,null,null,false]
[null,null,null,false]
[1.7,null,null,false]
[null,5,{"$f":"IF(B95=1,\"Demográfica y social\",IF(B95=2,\"Económica\",IF(B95=3,\"Geográfica y del Medio Ambiente\",IF(B95=4,\"Gobierno, Seguridad Pública e Impartición de Justicia\",IF(B95=5,\"No declarado\")))))","v":"No declarado"},false]
[null,null,null,false]
[null,null,null,true]
[2.1,null,null,false]
[null,{"$f":"ISTEXT(#REF!)","v":false},null,false,{"$f":"IF(B99=TRUE,MID(#REF!,1,700),\"No declarado\")","v":"No declarado"}]
[null,null,null,false]
[null,null,null,false]
["2.2a",null,null,false]
[null,{"$f":"ISTEXT('Contra Portada'!G12)","v":true},null,false,{"$f":"IF(B103=TRUE,MID('Contra Portada'!G12,1,700),\"No declarado\")","v":"Gonzalo"}]
[null,null,null,false]
[null,null,null,false]
["2.2b",null,null,false]
[null,{"$f":"ISTEXT('Contra Portada'!G14)","v":true},null,false,{"$f":"IF(B107=TRUE,MID('Contra Portada'!G14,1,700),\"No declarado\")","v":"Hernández Licona"}]
[null,null,null,true]
[]
[]
["2.2c"]
[null,{"$f":"ISTEXT('Contra Portada'!G16)","v":true},null,null,{"$f":"IF(B112=TRUE,MID('Contra Portada'!G16,1,700),\"No declarado\")","v":"Secretario Ejecutivo del Consejo Nacional de Evaluación de la Política de Desarrollo Social"}]
[]
[]
[]
[1.3]
[null,0,{"$f":"IF(B117=2, \"Proyecto no registrado en el REN\", IF(B117=1,\"Proyecto registrado en el REN\",\"\"))","v":""}]
[null,null,{"$f":"IF(B117=2, \"Si la respuesta es NO, es conveniente ponerse en contacto con el INEGI, a fin de realizar su inscripción (Ver datos en pregunta 1.3 del Instructivo)\", IF(B117=1,\"Si la respuesta es SI, asegurese que la información anotada en este formato sea congruente con la anotada en el REN\",\"\"))","v":""}]
[]
["2.2d"]
[null,{"$f":"ISTEXT('Contra Portada'!G18)","v":true},null,null,{"$f":"IF(B121=TRUE,MID('Contra Portada'!G18,1,700),\"No declarado\")","v":"Boulevard Adolfo López Mateos #160\nColonia San Angel Inn\nC.P. 01060\nMéxico D.F. Delegación Álvaro Obregón"}]
[]
[]
["2.2e"]
[null,{"$f":"ISNUMBER('Contra Portada'!G20)","v":false},null,null,{"$f":"IF(B125=TRUE,MID('Contra Portada'!G20,1,700),\"No declarado\")","v":"No declarado"}]
[]
[]
["2.2e"]
[null,{"$f":"ISTEXT('Contra Portada'!G22)","v":true},null,null,{"$f":"IF(B129=TRUE,MID('Contra Portada'!G22,1,700),\"No declarado\")","v":"ghernandezl@coneval.gob.mx"}]
[]
[]
[]
[]
[null,null,null,{"$f":"TRIM(D135)","v":{"$error":"#REF!"}}]
[null," "," ",{"$f":"+CONCATENATE(G136,H140,#REF!)","v":{"$error":"#REF!"}}]
[null,null,null,2,null,null,{"$f":"CONCATENATE(E143,I139,E144,I139,E145,I139,E146,I139,E147,I139,E148,I139,E149,I139,E150,I139,E151,I139,E152,I139,E153)","v":"                                         "}]
[null,null,null,null,null," "," "," "," "]
[]
[null,null,null,null,"4.1.1",null,null,"4.2.1","   "]
[null,null,null,0,{"$f":"IF(D140=1,\"Aprovechamiento de registros administrativos\",IF(D140=2,\"Enumeración del total de elementos de la población de estudio\",IF(D140=4,\"Generación de estadística derivada\",IF(D140=3,\"Encuesta por muestreo\", \"No declarado\"))))","v":"No declarado"},null,null,{"$f":"CONCATENATE(E154,I139,E155,I139,E156,I139,E157,I139,E158,I139,E159,I139,E160,I139,E161,I139,E162,I139,E163,I139,E164)","v":"                                         "}]
[null,null,null," ",{"$f":"EXACT(E140,\"Encuesta por Muestreo\")","v":false},{"$f":"EXACT(E140,\"Aprovechamiento de Registros Administrativos\")","v":false},{"$f":"EXACT(E140,\"Enumeración del total de elementos de la población de estudio\")","v":false},{"$f":"EXACT(E140,\"Generación de estadística derivada\")","v":false}]
[]
[null,null,1,false,{"$f":"IF(D143=TRUE,\"Población y dinámica demográfica\", \" \")","v":" "}]
[null,null,2,false,{"$f":"IF(D144=TRUE,\"Salud  \", \" \")","v":" "},null,null,null,"Salud"]
[null,null,3,false,{"$f":"IF(D145=TRUE,\"Educación  \", \" \")","v":" "},null,null,null,"Educación"]
[null,null,4,false,{"$f":"IF(D146=TRUE,\"Empleo  \", \" \")","v":" "},null,null,null,"Empleo"]
[null,null,5,false,{"$f":"IF(D147=TRUE,\"Distribución del ingreso y pobreza   \", \" \")","v":" "},null,null,null,"Distribución del ingreso y pobreza"]
[null,null,6,false,{"$f":"IF(D148=TRUE,\"Seguridad pública e impartición de justicia  \", \" \")","v":" "},null,null,null,"Seguridad pública e impartición de justicia "]
[null,null,7,false,{"$f":"IF(D149=TRUE,\"Gobierno  \", \" \")","v":" "},null,null,null,"Gobierno"]
[null,null,8,false,{"$f":"IF(D150=TRUE,\"Vivienda  \", \" \")","v":" "},null,null,null,"Vivienda"]
[null,null,9,false,{"$f":"IF(D151=TRUE,\"Sistema de cuentas nacionales  \", \" \")","v":" "},null,null,null,"Sistema de Cuentas Nacionales "]
[null,null,10,false,{"$f":"IF(D152=TRUE,\"Información financiera  \", \" \")","v":" "},null,null,null,"Información financiera"]
[null,null,11,false,{"$f":"IF(D153=TRUE,\"Precios  \", \" \")","v":" "},null,null,null,"Precios"]
[null,null,12,false,{"$f":"IF(D154=TRUE,\"Trabajo  \", \" \")","v":" "},null,null,null,"Trabajo"]
[null,null,13,false,{"$f":"IF(D155=TRUE,\"Ciencia y tecnología  \", \" \")","v":" "},null,null,null,"Ciencia y tecnología"]
[null,null,14,false,{"$f":"IF(D156=TRUE,\"Atmósfera  \", \" \")","v":" "},null,null,null,"Atmósfera"]
[null,null,15,false,{"$f":"IF(D157=TRUE,\"Biodiversidad  \", \" \")","v":" "},null,null,null,"Biodiversidad"]
[null,null,16,false,{"$f":"IF(D158=TRUE,\"Agua  \", \" \")","v":" "},null,null,null,"Agua"]
[null,null,17,false,{"$f":"IF(D159=TRUE,\"Suelo  \", \" \")","v":" "},null,null,null,"Suelo"]
[null,null,18,false,{"$f":"IF(D160=TRUE,\"Flora  \", \" \")","v":" "},null,null,null,"Flora"]
[null,null,19,false,{"$f":"IF(D161=TRUE,\"Fauna  \", \" \")","v":" "},null,null,null,"Fauna"]
[null,null,20,false,{"$f":"IF(D162=TRUE,\"Residuos peligrosos y residuos sólidos  \", \" \")","v":" "},null,null,null,"Residuos peligrosos y residuos sólidos"]
[null,null,21,false,{"$f":"IF(D163=TRUE,\"Recursos naturales  \", \" \")","v":" "},null,null,null,"Recursos naturales"]
[null,null,22,false,{"$f":"IF(D164=TRUE,\"Clima  \", \" \")","v":" "},null,null,null,"Clima "]

{"sheet":"Políticas públicas","index":2,"n_rows":143,"n_cols":13,"rows_kept":143,"cut":false,"hidden":false,"merged":[[82,9,82,10],[73,3,73,6],[82,1,82,2],[82,3,82,4],[82,5,82,6],[82,7,82,8],[63,1,63,10],[64,1,72,2],[64,3,64,6],[64,7,64,10],[65,3,67,9],[65,10,67,10],[68,3,68,8],[69,3,71,10],[72,3,72,6],[45,1,45,10],[46,1,61,2],[46,3,46,6],[46,7,46,10],[47,3,49,9],[47,10,49,10],[50,3,50,8],[51,3,53,10],[54,3,54,6],[55,3,57,9],[55,10,57,10],[58,3,58,8],[59,3,61,10],[36,3,36,8],[37,3,39,10],[40,3,40,8],[41,3,43,10],[44,3,44,6],[24,1,24,10],[27,4,30,9],[27,10,30,10],[31,1,31,10],[33,3,35,10],[13,1,13,5],[13,6,13,10],[15,1,15,10],[17,1,17,10],[20,4,23,9],[20,10,23,10],[3,3,3,9],[4,3,4,9],[8,1,9,10],[10,1,10,10],[11,1,11,5],[11,6,11,10]]}
[null,null,null,null,null,{"$f":"ISTEXT(#REF!)","v":false},{"$f":"ISTEXT(#REF!)","v":false},{"$f":"TRIM(#REF!)","v":{"$error":"#REF!"}},{"$f":"ISTEXT(#REF!)","v":false},{"$f":"IF(G1=FALSE,\"No declarado\",MID(#REF!,1,100))","v":"No declarado"}]
[]
[]
[null,null,null,"REGLAS PARA LA DETERMINACIÓN\nDE LA INFORMACIÓN DE INTERÉS NACIONAL "]
[null,null,null,"Formato Regla Décima. Información Estadística"]
[]
[]
[]
[null,"3. POLÍTICAS PÚBLICAS DE ALCANCE NACIONAL (FUNDAMENTO DE LA INFORMACIÓN PROPUESTA)"]
[]
[null,"3.1 La información estadística propuesta se utiliza en la Política Pública"]
[null,"3.1.1 Para diseñar nuevas políticas públicas en materia de:",null,null,null,null,"Combate a la pobreza; mejoramiento del ingreso de las familias; la reducción de las carencias sociales relacionadas con el rezago educativo, acceso a los servicios de salud, acceso a la seguridad social, calidad y espacios de la vivienda, acceso a los servicios básicos en la vivienda y acceso a la alimentación. Establecimiento de la canasta básica y seguimiento a los patrones de consumo de los hogares mexicanos."]
[]
[null,"3.1.2 Para el seguimiento de qué políticas públicas:",null,null,null,null,"La evaluación de la política de desarrollo social. Para tener un seguimiento del acceso de la población a los servicios de salud, a la seguridad social, a la alimentación, la calidad y espacios de la vivienda, el acceso a los servicios básicos en la vivienda y el rezago educativo. El cambio en los niveles de ingreso de los hogares y el grado de cohesión social."]
[]
[null,"3.2 La información estadística propuesta debe generarse porque lo mandata:",null,null,null,null,null,null,null,null,null,null," "]
[]
[null,"3.2.1 Ley aplicable"]
[null,"          Si selecciona la opción \"Sí\", anote: Título, capítulo, sección, artículo, fracción, párrafo, fecha de última publicación y observaciones."]
[]
[null,null,null,null,"Ley General de Desarrollo Social. Capítulo VI artículos 36 y 37. Título Quinto, Capítulo II De Consejo Nacional de Evaluación de la Política de Desarrollo Social, artículos 81-85. (DOF, 20 de enero de 2004, última reforma 1 de junio de 2012)"]
[]
[]
[]
[null,"3.2.2 Otro ordenamiento jurídico"]
[null,"          Si selecciona la opción \"Sí\", anote: Nombre del ordenamiento, especificaciones, fecha de última publicación y observaciones."]
[]
[null,null,null,null,"Reglamento de la Ley General de Desarrollo Social, Capítulo VI \nDe la Definición y Medición de la Pobreza, artículos 37 y 38. (DOF, 18 de enero de 2006, última reforma 28 de agosto de 2008)\nLineamientos y criterios generales para la definición, identificación y medición de la pobreza. (DOF, 16 de junio de 2010)\nEstatuto Orgánico del Consejo Nacional de Evaluación de la Política de Desarrollo Social.  (DOF, 16 de julio de 2007, última reforma 16 de mayo de 2011)\nDecreto por el que se regula el Consejo Nacional de Evaluación de la Política de Desarrollo Social (DOF, 24 de agosto de 2005)"]
[]
[]
[]
[null,"3.2.3 El Plan Nacional de Desarrollo\n          Si contesta afirmativamente, especifique eje rector, objetivos y estrategias relacionadas"]
[null,null,null,"Eje rector:"]
[null,null,null,"Eje 3. Igualdad de Oportunidades \n3.1 Superación de la pobreza"]
[null,null,null,null,null,null,null,null,null,null,null,null," "]
[]
[null,null,null,"Objetivos relacionados:",null,null,null,null,null,null,null,null," "]
[null,null,null,"Objetivo 1\nReducir significativamente el número de mexicanos en condiciones de pobreza con políticas públicas que superen un enfoque asistencialista, de modo que las personas puedan adquirir capacidades y generar oportunidades de trabajo.\nObjetivo 2\nApoyar a la población más pobre a elevar sus ingresos y a mejorar su calidad de vida, impulsando y apoyando la generación de proyectos productivos.\nObjetivo 3\nLograr un patrón territorial nacional que frene la expansión desordenada de las ciudades, provea suelo apto para el desarrollo urbano y facilite el acceso a servicios y equipamientos en comunidades tanto urbanas como rurales."]
[]
[]
[null,null,null,"Estrategias relacionadas:",null,null,null,null,null,null,null,null," "]
[null,null,null,"ESTRATEGIA 1.1 Fortalecer los programas existentes de superación de la pobreza, ampliándolos para incluir otras vertientes de apoyo social y asegurar que lleguen a la población que realmente los necesita.\nESTRATEGIA 1.2 Impulsar prioritariamente el desarrollo de los municipios de mayor marginación, a través de una efectiva focalización de recursos y coordinación de esfuerzos entre el Gobierno Federal y los demás órdenes de gobierno.\nESTRATEGIA 1.3 Asegurar que los mexicanos en situación de pobreza resuelvan sus necesidades de alimentación y vivienda digna, con pleno acceso a servicios básicos y a una educación y salud de calidad.\nESTRATEGIA 1.4 Mejorar los procesos de planeación, operación y evaluación de los programas para la superación de la pobreza, incluyendo la elaboración de un padrón único de beneficiarios.\nESTRATEGIA 1.5 Fortalecer y ampliar los programas e instrumentos del Gobierno Federal para el combate de la pobreza en las ciudades del país.\nESTRATEGIA 1.6 Promover la participación responsable de la sociedad civil en el combate a la pobreza.\nESTRATEGIA 2.1 Apoyar el arranque y la operación de proyectos productivos familiares y de grupos comunitarios mediante asesoría y programas de microfinanciamiento, en el campo y las ciudades.\nESTRATEGIA 2.2 Ampliar la cobertura y mejorar la calidad de las vías y medios de comunicación y de transporte para conectar a las regiones menos desarrolladas del país.\nESTRATEGIA 2.3 Promover proyectos de ecoturismo, turismo de aventura y turismo cultural en las zonas rurales para que puedan aprovechar sus ventajas comparativas en cuanto a riqueza cultural y natural y hagan de ésta una actividad que detone su desarrollo económico y social.\nESTRATEGIA 2.4 Reorientar y fortalecer los programas de las instituciones públicas del sector agropecuario para detonar el desarrollo de actividades económicas en el campo.\nESTRATEGIA 2.5 Emprender acciones para propiciar el empleo en zonas donde se genera la expulsión de personas, procurando convertirlas en receptoras de inversión.\nESTRATEGIA 3.1 Promover el ordenamiento territorial, la certeza jurídica en la tenencia de la tierra y la seguridad pública en zonas marginadas de las ciudades.\nESTRATEGIA 3.2. Impulsar el ordenamiento territorial nacional y el desarrollo regional a través de acciones coordinadas entre los tres órdenes de gobierno y concertadas con la sociedad civil.\nESTRATEGIA 3.3 Prevenir y atender los riesgos naturales.\nESTRATEGIA 3.4 Fortalecer el marco institucional federal en materia de desarrollo urbano creando los instrumentos financieros, técnicos y normativos que requiere la problemática actual de nuestras ciudades."]
[]
[]
[]
[null,"3.2.4 Programa sectorial, regional o especial\n          Si contesta afirmativamente, especifique el nombre del (los) programa(s) y los objetivos, metas e indicadores relacionados                                                                   "]
[null,null,null,"Nombre del programa: "]
[null,null,null,"Programa Sectorial de Desarrollo Social 2007-2012",null,null,null,null,null,null,"Anexar el archivo o dirección electrónica donde se puede consultar el programa. "]
[null,null,null,null,null,null,null,null,null,null,null,null," "]
[]
[null,null,null,"Objetivos, metas e indicadores relacionados:",null,null,null,null,null,null,null,null," "]
[null,null,null,"Objetivo 1. Desarrollar las capacidades básicas de las personas en condición de pobreza.\nMeta. Reducir a 19.6% la prevalencia de desnutrición crónica infantil (niños menores de 5 años), entendida como baja talla para la edad, del 25 por ciento de la población con menores ingresos.\nIndicador. Prevalencia de desnutrición crónica infantil de la población en condiciones de pobreza.\nMeta. Incrementar al menos a 70.5% la tasa de terminación de educación básica de los jóvenes en pobreza extrema, con el objeto de reducir la brecha con la tasa de terminación a nivel nacional.\nIndicador. Tasa de terminación de educación básica de los jóvenes en pobreza extrema.\n\n\nObjetivo 2. Abatir el rezago que enfrentan los grupos sociales vulnerables a través de estrategias de asistencia social que les permitan desarrollar sus potencialidades con independencia y plenitud.\nMeta. Lograr que 500 mil niños entre 1 y 4 años en hogares con ingresos menores a los 6 salarios mínimos, reciban servicio de la red de Estancias Infantiles.\nIndicador. Niños atendidos en la red de Estancias Infantiles.\nMeta. Atender a 70% de los jornaleros agrícolas migrantes, incluidos los miembros de sus familias.\nIndicador. Jornaleros Agrícolas migrantes y familiares atendidos."]
[]
[]
[null,null,null,"Nombre del programa:"]
[null,null,null,"Programa Sectorial de Educación 2007-2012.",null,null,null,null,null,null,"Anexar el archivo o dirección electrónica donde se puede consultar el programa. "]
[]
[]
[null,null,null,"Objetivos, metas e indicadores relacionados:"]
[null,null,null,"Objetivo 2. Ampliar las oportunidades educativas para reducir desigualdades entre grupos sociales, cerrar brechas e impulsar la equidad.\nIndicador. Becas educativas en educación media superior para alumnos que provienen de hogares cuyo ingreso familiar no rebasa la línea de pobreza establecida por el CONEVAL y que no reciben beca del programa Oportunidades. \nMeta. 250,000\nIndicador. Becas educativas en educación superior para jóvenes cuyo ingreso familiar se ubica en los 4 deciles de ingreso más bajos.\nMeta. 400,000"]
[]
[]
[]
[null,"3.2.5 Plan Estatal de Desarrollo\n          Si contesta afirmativamente, especifique el nombre del Plan y  los objetivos, metas e indicadores relacionados                                                                                      "]
[null,null,null,"Nombre del Plan: "]
[null,null,null,null,null,null,null,null,null,null,"Anexar archivo PDF o dirección electrónica del Plan Estatal de Desarrollo."]
[null,null,null,null,null,null,null,null,null,null,null,null," "]
[]
[null,null,null,"Objetivos, metas e indicadores relacionados:",null,null,null,null,null,null,null,null," "]
[]
[]
[]
[]
[]
[]
[]
[]
[]
[]
[]
[]
[]
[]
[]
[]
["3.1a",{"$f":"ISTEXT(#REF!)","v":false}]
[null,{"$f":"IF(B86=TRUE,MID(#REF!,1,500), \"No declarado\")","v":"No declarado"}]
[]
[null,{"$f":"ISTEXT(#REF!)","v":false}]
["3.1b",{"$f":"IF(B89=TRUE,MID(#REF!,1,500), \"No declarado\")","v":"No declarado"}," "," "," "]
[]
[]
["3.21a",null,null,null,null,1,{"$f":"IF(F93=2, \"Si\", \"No\")","v":"No"},{"$f":"IF(F93=0,\"No declarado\",MID(G93,1,2))","v":"No"}]
[null,{"$f":"ISTEXT(#REF!)","v":false}]
[null,{"$f":"IF(B94=TRUE,MID(#REF!,1,800), \"No declarado\")","v":"No declarado"}]
[]
["3.21b",{"$f":"ISTEXT(#REF!)","v":false}]
[null,{"$f":"IF(B97=TRUE,MID(#REF!,1,800), \"No declarado\")","v":"No declarado"}]
[]
["3.21c",{"$f":"ISTEXT(#REF!)","v":false}]
[null,{"$f":"IF(B100=TRUE,MID(#REF!,1,500), \"No declarado\")","v":"No declarado"}]
[]
["3.21d",{"$f":"ISTEXT(#REF!)","v":false}]
[null,{"$f":"IF(B103=TRUE,MID(#REF!,1,500), \"No declarado\")","v":"No declarado"},null,null,null,null,null,"          /          "]
[null,null,null,null,null,null,null,{"$f":"CONCATENATE(B95,H104,B109)","v":"No declarado          /          No declarado"}]
[]
["3.22a",null,null,null,null,null,0,{"$f":"IF(G107=1, \"Si\", \"No\")","v":"No"},{"$f":"IF(G107=0,\"No declarado\",MID(H107,1,2))","v":"No declarado"}]
[null,{"$f":"ISTEXT(#REF!)","v":false}]
[null,{"$f":"IF(B108=TRUE,MID(#REF!,1,800), \"No declarado\")","v":"No declarado"}]
[]
["3.22b",{"$f":"ISTEXT(#REF!)","v":false}]
[null,{"$f":"IF(B111=TRUE,MID(#REF!,1,800), \"No declarado\")","v":"No declarado"}]
[]
["3.22c",{"$f":"ISTEXT(#REF!)","v":false}]
[null,{"$f":"IF(B114=TRUE,MID(#REF!,1,800), \"No declarado\")","v":"No declarado"}]
[]
["3.22d",{"$f":"ISTEXT(#REF!)","v":false}]
[null,{"$f":"IF(B117=TRUE,MID(#REF!,1,500), \"No declarado\")","v":"No declarado"}]
[]
[null,null,null,null,null,0]
[null,null,null,null,0,{"$f":"IF(E121=1, \"Si\", \"No\")","v":"No"},{"$f":"IF(E121=0,\"No declarado\",MID(F121,1,2))","v":"No declarado"}]
["3.23a"]
[null,{"$f":"ISTEXT(#REF!)","v":false}]
[null,{"$f":"IF(B123=TRUE,MID(#REF!,1,1000), \"No declarado\")","v":"No declarado"}]
[]
["3.23b",{"$f":"ISTEXT(#REF!)","v":false}]
[null,{"$f":"IF(B126=TRUE,MID(#REF!,1,1000), \"No declarado\")","v":"No declarado"}]
[]
["3.23c",{"$f":"ISTEXT(#REF!)","v":false}]
[null,{"$f":"IF(B129=TRUE,MID(#REF!,1,1000), \"No declarado\")","v":"No declarado"}]
[]
["3.23d",{"$f":"ISTEXT(#REF!)","v":false}]
[null,{"$f":"IF(B132=TRUE,MID(#REF!,1,1000), \"No declarado\")","v":"No declarado"}]
[]
[]
[]
[3.3]
[null,false,{"$f":"IF(B138=TRUE,\"Federal\", \"\")","v":""},"         ",{"$f":"CONCATENATE(C138,D138,C139,D138,C140)","v":"                  "}]
[null,false,{"$f":"IF(B139=TRUE,\"Estatal\", \"\")","v":""}]
[null,false,{"$f":"IF(B140=TRUE,\"Municipal\", \"\")","v":""}]
[]
[]
["ejemplo de concatenar 3.21 y 3.22"]

{"sheet":"Emer. y compromisos","index":3,"n_rows":121,"n_cols":15,"rows_kept":121,"cut":false,"hidden":false,"merged":[[26,10,26,15],[9,1,9,15],[18,8,18,14],[2,5,2,13],[3,5,3,13],[21,1,21,15],[7,1,8,15],[19,8,19,14],[113,1,114,17],[22,1,22,15],[27,2,27,9],[33,1,33,15],[28,2,28,9],[27,10,27,15],[36,4,38,13],[29,2,29,9],[30,2,30,9],[31,2,31,9],[36,14,38,14],[29,10,29,15],[30,10,30,15],[31,10,31,15],[26,1,26,9],[28,10,28,15]]}
[]
[]
[null,null,null,null,null,"REGLAS PARA LA DETERMINACIÓN\nDE LA INFORMACIÓN DE INTERÉS NACIONAL "]
[null,null,null,null,null,"Formato Regla Décima. Información Estadística"]
[]
[]
[]
[null,"4. ATENCIÓN DE EMERGENCIAS O COMPROMISOS INTERNACIONALES"]
[]
[null,"4.1 ¿Cuáles de los siguientes organismos han declarado de utilidad la información propuesta para prevenir o atender desastres naturales?"]
[null,null,"(Marque las opciones correspondientes)"]
[]
[null,null,null,null,null,"1. Sistema Nacional de Protección civil"]
[]
[null,null,null,null,null,"2. Centro Nacional de Prevención de Desastres"]
[]
[null,null,null,null,null,"3. Ninguno"]
[]
[null,null,null,null,null,"4. Otro"]
[null,null,null,null,null,null,null,null,"Especifique"]
[]
[null,"4.2 ¿La información estadística propuesta se utiliza para atender acuerdos, tratados o compromisos establecidos a nivel internacional?"]
[null,"       (Marque la opción correspondiente. Si selecciona la opción \"Sí\", especifique el nombre de los compromisos y organismos o países; si selecciona la opción\n       \"No\", deje en blanco 4.3)"]
[]
[null,null,null,null,null,null,null," ",null," "]
[null,null,{"$f":"+E120","v":"Especifique"},null,null,null,null," "]
[null,"Nombre del acuerdo, tratado o compromiso internacional",null,null,null,null,null,null,null,null,"Nombre del organismo o país con el que se estableció"]
[null,1,"Declaración Universal de Derechos Humanos",null,null,null,null,null,null,null,"Organización de las Naciones Unidas"]
[null,2,"Pacto Internacional de Derechos Económicos, Sociales y Culturales",null,null,null,null,null,null,null,"Organización de las Naciones Unidas"]
[null,3,"Convención sobre los Derechos del Niño",null,null,null,null,null,null,null,"Organización de las Naciones Unidas"]
[null,4,"Cumbre del Milenio de las Naciones Unidas",null,null,null,null,null,null,null,"Organización de las Naciones Unidas"]
[null,5]
[]
[null,"4.3 ¿El compromiso internacional ha sido suscrito por el Presidente de la República y aprobado por el Senado?"]
[]
[]
[null,null,null,null,"DECLARACIÓN UNIVERSAL DE LOS DERECHOS HUMANOS\nDepositario: ONU. \nLugar de adopción: Nueva York, EUA. \nFecha de adopción: 16 de diciembre de 1966. \nVinculación de México: 23 de marzo de 1981. Adhesión. \nAprobación del Senado: 18 de diciembre de 1980, según decreto publicado en el Diario Oficial de la Federación 0l 9 de enero de 1981. \nEntrada en vigor: 23 de marzo de 1976- General. \nPublicación Diario Oficial de la Federación: 20 de mayo de 1981. \n22 de junio de 1981. Fe de erratas\nPACTO INTERNACIONAL DE DERECHOS ECONOMICOS, SOCIALES Y CULTURALES\nAprobación Senado: 18 diciembre 1980 Publicación DOF Aprobación: 9 enero 1981 Vinculación de México: 23 marzo 1981 Adhesión Entrada en vigor internacional: 3 enero 1976 Entrada en vigor para México: 23 junio 1981 Publicación DOF Promulgación: 12 mayo 1981\nCONVENCION SOBRE LOS DERECHOS DEL NIÑO\nFirma México: 26 enero 1990 Aprobación Senado: 19 junio 1990 Publicación DOF Aprobación: 31 julio 1990 Vinculación de México: 21 septiembre 1990 Ratificación Entrada en vigor internacional: 2 septiembre 1990 Entrada en vigor para México: 21 octubre 1990 Publicación DOF Promulgación: 25 enero 1991\nCUMBRE DEL MILENIO\nResolución aprobada por la Asamblea General 55/2. Declaración del Milenio 8ª sesión plenaria 8 de septiembre de 2000\nMéxico suscribió la Declaración del Milenio durante la Cumbre del Milenio de Naciones Unidas septiembre del año 2000",null,null,null,null,null,null,null,null,null,"Anexar copia del documento aprobatorio o comprobatorio y/o observaciones"]
[]
[]
[]
[]
["3.4a2",null,{"$f":"ISTEXT(#REF!)","v":false},null,{"$f":"IF(C42=TRUE,MID(#REF!,1,500), \"No declarado\")","v":"No declarado"},null,null,null,null,"   /    ",{"$f":"CONCATENATE(E40,J42,E42,J42,E43,J42,E44,J42,E45,J42,E46,J42,E47,J42,E48,J42,E49,J42,E50,J42,E51,J42,E52,J42,E53)","v":"   /    No declarado   /    No declarado   /    No declarado   /    No declarado   /    No declarado   /    No declarado   /    No declarado   /    No declarado   /    No declarado   /    No declarado   /    No declarado   /    No declarado"}]
["3.4a3",null,{"$f":"ISTEXT(#REF!)","v":false},null,{"$f":"IF(C43=TRUE,MID(#REF!,1,500), \"No declarado\")","v":"No declarado"},null,null,null,null,"      "]
["3.4a4",null,{"$f":"ISTEXT(#REF!)","v":false},null,{"$f":"IF(C44=TRUE,MID(#REF!,1,500), \"No declarado\")","v":"No declarado"}]
["3.4a5",null,{"$f":"ISTEXT(#REF!)","v":false},null,{"$f":"IF(C45=TRUE,MID(#REF!,1,500), \"No declarado\")","v":"No declarado"}]
["3.4a6",null,{"$f":"ISTEXT(#REF!)","v":false},null,{"$f":"IF(C46=TRUE,MID(#REF!,1,500), \"No declarado\")","v":"No declarado"}]
["3.4a7",null,{"$f":"ISTEXT(#REF!)","v":false},null,{"$f":"IF(C47=TRUE,MID(#REF!,1,500), \"No declarado\")","v":"No declarado"}]
["3.4a8",null,{"$f":"ISTEXT(#REF!)","v":false},null,{"$f":"IF(C48=TRUE,MID(#REF!,1,500), \"No declarado\")","v":"No declarado"}]
["3.4a9",null,{"$f":"ISTEXT(#REF!)","v":false},null,{"$f":"IF(C49=TRUE,MID(#REF!,1,500), \"No declarado\")","v":"No declarado"}]
["3.4a10",null,{"$f":"ISTEXT(#REF!)","v":false},null,{"$f":"IF(C50=TRUE,MID(#REF!,1,500), \"No declarado\")","v":"No declarado"}]
["3.4a11",null,{"$f":"ISTEXT(#REF!)","v":false},null,{"$f":"IF(C51=TRUE,MID(#REF!,1,500), \"No declarado\")","v":"No declarado"}]
["3.4a12",null,{"$f":"ISTEXT(#REF!)","v":false},null,{"$f":"IF(C52=TRUE,MID(#REF!,1,500), \"No declarado\")","v":"No declarado"}]
["3.4a13",null,{"$f":"ISTEXT(#REF!)","v":false},null,{"$f":"IF(C53=TRUE,MID(#REF!,1,500), \"No declarado\")","v":"No declarado"}]
[]
["3.4b1",null,{"$f":"ISTEXT(#REF!)","v":false},null,{"$f":"IF(C55=TRUE,MID(#REF!,1,500), \"No declarado\")","v":"No declarado"},null,null,null,null,null,{"$f":"CONCATENATE(E55,J42,E56,J42,E57,J42,E58,J42,E59,J42,E60,J42,E61,J42,E62,J42,E63,J42,E64,J42,E65,J42,E66,J42,E67)","v":"No declarado   /    No declarado   /    No declarado   /    No declarado   /    No declarado   /    No declarado   /    No declarado   /    No declarado   /    No declarado   /    No declarado   /    No declarado   /    No declarado   /    No declarado"}]
["3.4b2",null,{"$f":"ISTEXT(#REF!)","v":false},null,{"$f":"IF(C56=TRUE,MID(#REF!,1,500), \"No declarado\")","v":"No declarado"}]
["3.4b3",null,{"$f":"ISTEXT(#REF!)","v":false},null,{"$f":"IF(C57=TRUE,MID(#REF!,1,500), \"No declarado\")","v":"No declarado"}]
["3.4b4",null,{"$f":"ISTEXT(#REF!)","v":false},null,{"$f":"IF(C58=TRUE,MID(#REF!,1,500), \"No declarado\")","v":"No declarado"}]
["3.4b5",null,{"$f":"ISTEXT(#REF!)","v":false},null,{"$f":"IF(C59=TRUE,MID(#REF!,1,500), \"No declarado\")","v":"No declarado"}]
["3.4b6",null,{"$f":"ISTEXT(#REF!)","v":false},null,{"$f":"IF(C60=TRUE,MID(#REF!,1,500), \"No declarado\")","v":"No declarado"}]
["3.4b7",null,{"$f":"ISTEXT(#REF!)","v":false},null,{"$f":"IF(C61=TRUE,MID(#REF!,1,500), \"No declarado\")","v":"No declarado"},null,null,null,null,"   /    "]
["3.4b8",null,{"$f":"ISTEXT(#REF!)","v":false},null,{"$f":"IF(C62=TRUE,MID(#REF!,1,500), \"No declarado\")","v":"No declarado"},null,null,null,null,"      "]
["3.4b9",null,{"$f":"ISTEXT(#REF!)","v":false},null,{"$f":"IF(C63=TRUE,MID(#REF!,1,500), \"No declarado\")","v":"No declarado"}]
["3.4b10",null,{"$f":"ISTEXT(#REF!)","v":false},null,{"$f":"IF(C64=TRUE,MID(#REF!,1,500), \"No declarado\")","v":"No declarado"}]
["3.4b11",null,{"$f":"ISTEXT(#REF!)","v":false},null,{"$f":"IF(C65=TRUE,MID(#REF!,1,500), \"No declarado\")","v":"No declarado"}]
["3.4b12",null,{"$f":"ISTEXT(#REF!)","v":false},null,{"$f":"IF(C66=TRUE,MID(#REF!,1,500), \"No declarado\")","v":"No declarado"}]
["3.4b13",null,{"$f":"ISTEXT(#REF!)","v":false},null,{"$f":"IF(C67=TRUE,MID(#REF!,1,500), \"No declarado\")","v":"No declarado"}]
[]
["3.4c1",null,{"$f":"ISTEXT(#REF!)","v":false},null,{"$f":"IF(C69=TRUE,MID(#REF!,1,500), \"No declarado\")","v":"No declarado"},null,null,null,null,null,{"$f":"CONCATENATE(E69,J61,E70,J61,E71,J61,E72,J61,E73,J61,E74,J61,E75,J61,E76,J61,E77,J61,E78,J61,E79,J61,E80,J61,E81)","v":"No declarado   /    No declarado   /    No declarado   /    No declarado   /    No declarado   /    No declarado   /    No declarado   /    No declarado   /    No declarado   /    No declarado   /    No declarado   /    No declarado   /    No declarado"}]
["3.4c2",null,{"$f":"ISTEXT(#REF!)","v":false},null,{"$f":"IF(C70=TRUE,MID(#REF!,1,500), \"No declarado\")","v":"No declarado"}]
["3.4c3",null,{"$f":"ISTEXT(#REF!)","v":false},null,{"$f":"IF(C71=TRUE,MID(#REF!,1,500), \"No declarado\")","v":"No declarado"}]
["3.4c4",null,{"$f":"ISTEXT(#REF!)","v":false},null,{"$f":"IF(C72=TRUE,MID(#REF!,1,500), \"No declarado\")","v":"No declarado"}]
["3.4c5",null,{"$f":"ISTEXT(#REF!)","v":false},null,{"$f":"IF(C73=TRUE,MID(#REF!,1,500), \"No declarado\")","v":"No declarado"}]
["3.4c6",null,{"$f":"ISTEXT(#REF!)","v":false},null,{"$f":"IF(C74=TRUE,MID(#REF!,1,500), \"No declarado\")","v":"No declarado"}]
["3.4c7",null,{"$f":"ISTEXT(#REF!)","v":false},null,{"$f":"IF(C75=TRUE,MID(#REF!,1,500), \"No declarado\")","v":"No declarado"}]
["3.4c8",null,{"$f":"ISTEXT(#REF!)","v":false},null,{"$f":"IF(C76=TRUE,MID(#REF!,1,500), \"No declarado\")","v":"No declarado"}]
["3.4c9",null,{"$f":"ISTEXT(#REF!)","v":false},null,{"$f":"IF(C77=TRUE,MID(#REF!,1,500), \"No declarado\")","v":"No declarado"}]
["3.4c10",null,{"$f":"ISTEXT(#REF!)","v":false},null,{"$f":"IF(C78=TRUE,MID(#REF!,1,500), \"No declarado\")","v":"No declarado"}]
["3.4c11",null,{"$f":"ISTEXT(#REF!)","v":false},null,{"$f":"IF(C79=TRUE,MID(#REF!,1,500), \"No declarado\")","v":"No declarado"}]
["3.4c12",null,{"$f":"ISTEXT(#REF!)","v":false},null,{"$f":"IF(C80=TRUE,MID(#REF!,1,500), \"No declarado\")","v":"No declarado"},null,null,null,null,"   /    "]
["3.4c13",null,{"$f":"ISTEXT(#REF!)","v":false},null,{"$f":"IF(C81=TRUE,MID(#REF!,1,500), \"No declarado\")","v":"No declarado"},null,null,null,null,"      "]
["En esta versión ya no existen los siguientes:"]
["3.4d1",null,{"$f":"ISTEXT(#REF!)","v":false},null,{"$f":"IF(C83=TRUE,MID(#REF!,1,500), \"No declarado\")","v":"No declarado"},null,null,null,null,null,{"$f":"CONCATENATE(E83,J80,E84,J80,E85,J80,E86,J80,E87,J80,E88,J80,E89,J80,E90,J80,E91,J80,E92,J80,E93,J80,E94,J80,E95)","v":{"$error":"#REF!"}}]
["3.4d2",null,{"$f":"ISTEXT(#REF!)","v":false},null,{"$f":"IF(C84=TRUE,MID(#REF!,1,500), \"No declarado\")","v":"No declarado"}]
["3.4d3",null,{"$f":"ISTEXT(#REF!)","v":false},null,{"$f":"IF(C85=TRUE,MID(#REF!,1,500), \"No declarado\")","v":"No declarado"}]
["3.4d4",null,{"$f":"ISTEXT(#REF!)","v":false},null,{"$f":"IF(C86=TRUE,MID(#REF!,1,500), \"No declarado\")","v":"No declarado"}]
["3.4d5",null,{"$f":"ISTEXT(#REF!)","v":false},null,{"$f":"IF(C87=TRUE,MID(#REF!,1,500), \"No declarado\")","v":"No declarado"}]
["3.4d6",null,{"$f":"ISTEXT(#REF!)","v":false},null,{"$f":"IF(C88=TRUE,MID(#REF!,1,500), \"No declarado\")","v":"No declarado"}]
["3.4d7",null,false,null,{"$f":"IF(C89=TRUE,MID(#REF!,1,500), \"No declarado\")","v":"No declarado"}]
["3.4d8",null,false,null,{"$f":"IF(C90=TRUE,MID(#REF!,1,500), \"No declarado\")","v":"No declarado"}]
["3.4d9",null,true,null,{"$f":"IF(C91=TRUE,MID(#REF!,1,500), \"No declarado\")","v":{"$error":"#REF!"}}]
["3.4d10",null,false,null,{"$f":"IF(C92=TRUE,MID(#REF!,1,500), \"No declarado\")","v":"No declarado"}]
["3.4d11",null,false,null,{"$f":"IF(C93=TRUE,MID(#REF!,1,500), \"No declarado\")","v":"No declarado"}]
["3.4d12",null,{"$f":"ISTEXT(#REF!)","v":false},null,{"$f":"IF(C94=TRUE,MID(#REF!,1,500), \"No declarado\")","v":"No declarado"}]
["3.4d13",null,{"$f":"ISTEXT(#REF!)","v":false},null,{"$f":"IF(C95=TRUE,MID(#REF!,1,500), \"No declarado\")","v":"No declarado"}]
[]
["3.5a",null,{"$f":"ISTEXT(#REF!)","v":false},null,{"$f":"IF(C97=TRUE,MID(#REF!,1,500), \"No declarado\")","v":"No declarado"}]
[]
[null,null,null,null,null,null,null,"espacio ",1,{"$f":"CONCATENATE(I99,H100,E100)","v":"1     No declarado"}]
["3.6a1",null,{"$f":"ISTEXT(E28)","v":false},null,{"$f":"IF(C100=TRUE,MID(E28,1,500), \"No declarado\")","v":"No declarado"},null,null,"     ",2,{"$f":"CONCATENATE(I100,H101,E101)","v":"2      No declarado"}]
["3.6a2",null,{"$f":"ISTEXT(E29)","v":false},null,{"$f":"IF(C101=TRUE,MID(E29,1,500), \"No declarado\")","v":"No declarado"},null,null,"      ",3,{"$f":"CONCATENATE(I101,H100,E102)","v":"3     No declarado"}]
["3.6a3",null,{"$f":"ISTEXT(E30)","v":false},null,{"$f":"IF(C102=TRUE,MID(E30,1,500), \"No declarado\")","v":"No declarado"},null,null," ",4,{"$f":"CONCATENATE(I102,H100,E103)","v":"4     No declarado"}]
["3.6a4",null,{"$f":"ISTEXT(E31)","v":false},null,{"$f":"IF(C103=TRUE,MID(E31,1,500), \"No declarado\")","v":"No declarado"},null,null,null,5,{"$f":"CONCATENATE(I103,H100,E104)","v":"5     No declarado"}]
["3.6a5",null,{"$f":"ISTEXT(E32)","v":false},null,{"$f":"IF(C104=TRUE,MID(E32,1,500), \"No declarado\")","v":"No declarado"}]
[]
["3.6b1",null,{"$f":"ISTEXT(K28)","v":true},null,{"$f":"IF(C106=TRUE,MID(K28,1,500), \"No declarado\")","v":"Organización de las Naciones Unidas"}]
["3.6b2",null,{"$f":"ISTEXT(K29)","v":true},null,{"$f":"IF(C107=TRUE,MID(K29,1,500), \"No declarado\")","v":"Organización de las Naciones Unidas"}]
["3.6b3",null,{"$f":"ISTEXT(K30)","v":true},null,{"$f":"IF(C108=TRUE,MID(K30,1,500), \"No declarado\")","v":"Organización de las Naciones Unidas"}]
["3.6b4",null,{"$f":"ISTEXT(K31)","v":true},null,{"$f":"IF(C109=TRUE,MID(K31,1,500), \"No declarado\")","v":"Organización de las Naciones Unidas"},null,null,null,null,{"$f":"CONCATENATE(E106,H100,E107,H100,E108,H100,E109,H100,E110)","v":"Organización de las Naciones Unidas     Organización de las Naciones Unidas     Organización de las Naciones Unidas     Organización de las Naciones Unidas     No declarado"}]
["3.6b5",null,{"$f":"ISTEXT(K32)","v":false},null,{"$f":"IF(C110=TRUE,MID(K32,1,500), \"No declarado\")","v":"No declarado"}]
[null,null,null,null,"       ",null,null,null,null,null,"       "]
[null,null,null,null,{"$f":"CONCATENATE(E28,E111,E29,E111,E30,E111,E31,E111,E32)","v":"                            "},null,null,null,null,null,{"$f":"CONCATENATE(K28,K111,K29,K111,K30,K111,K31,K111,K32)","v":"Organización de las Naciones Unidas       Organización de las Naciones Unidas       Organización de las Naciones Unidas       Organización de las Naciones Unidas       "}]
[null,null,null,null,{"$f":"MID(E28,2,2)","v":""},{"$f":"_Sid55","v":{"$error":"#NAME?"}}]
[]
[]
[]
[3.5]
[null,null,0,null,{"$f":"IF(C118=2, \"Pasa       a        4.2\", \"Especifique\")","v":"Especifique"},null,{"$f":"IF(C118=1,\"Sí\",\"No\")","v":"No"},{"$f":"IF(C118=0,\"No declarado\",MID(G118,1,2))","v":"No declarado"}]
[]
[3.6,null,1,null,{"$f":"IF(C120=2, \"Pase a la siguiente página \", \"Especifique\")","v":"Especifique"},null,{"$f":"IF(C120=1,\"Sí\",\"No\")","v":"Sí"},{"$f":"IF(C120=0,\"No declarado\",MID(G120,1,2))","v":"Sí"}]
[null,null,false,null,{"$f":"IF(C121=TRUE,\"Pasa a la siguiente página\",\" \")","v":" "}]

{"sheet":"Metodología1","index":4,"n_rows":300,"n_cols":11,"rows_kept":300,"cut":false,"hidden":false,"merged":[[70,1,70,6],[63,4,63,9],[52,1,52,11],[68,1,68,6],[70,7,70,11],[71,1,71,6],[90,1,90,6],[95,9,95,10],[73,1,73,11],[77,1,77,6],[81,1,81,11],[76,1,76,6],[82,1,82,6],[89,1,89,6],[78,7,78,11],[89,7,89,11],[79,7,79,11],[84,7,84,11],[88,1,88,6],[84,1,84,6],[88,7,88,11],[86,7,86,11],[2,4,2,9],[3,4,3,9],[87,1,87,6],[67,1,67,6],[67,7,67,11],[11,2,12,10],[16,2,17,10],[21,2,22,10],[26,2,27,10],[47,1,47,11],[24,1,24,11],[64,4,64,9],[69,7,69,11],[49,2,50,10],[69,1,69,6],[71,7,71,11],[79,1,79,6],[87,7,87,11],[53,1,53,4],[7,1,8,11],[29,1,29,11],[19,1,19,11],[14,1,14,11],[9,1,9,11],[105,9,105,10],[107,1,107,11],[122,2,122,9],[113,7,113,11],[75,7,75,11],[117,1,117,11],[90,7,90,11],[111,1,111,3],[110,6,110,11],[75,1,75,6],[95,6,95,7],[83,1,83,6],[77,7,77,11],[76,7,76,11],[83,7,83,11],[105,6,105,7],[118,10,118,11],[119,10,119,11],[82,7,82,11],[113,1,113,3],[111,7,111,11],[119,2,119,9],[110,1,110,5],[118,2,118,9],[187,8,187,9],[162,8,162,9],[176,7,176,10],[178,7,178,10],[134,1,134,6],[135,7,135,11],[148,7,148,10],[135,1,135,6],[134,7,134,11],[136,7,136,11],[138,1,138,11],[142,1,142,11],[170,1,170,11],[163,3,163,5],[186,3,186,10],[171,1,171,11],[180,7,180,10],[162,4,162,7],[172,7,172,10],[130,1,130,11],[120,10,120,11],[122,10,122,11],[140,2,140,10],[148,3,148,6],[133,1,133,6],[132,1,132,6],[197,1,197,6],[197,7,197,11],[190,1,191,11],[193,1,193,6],[193,7,193,11],[188,1,189,11],[195,1,195,6],[196,1,196,6],[195,7,195,11],[196,7,196,11],[194,1,194,6],[194,7,194,11],[45,6,45,10],[46,6,46,10],[66,1,66,11],[68,7,68,11],[85,7,85,11],[78,1,78,6],[147,1,147,11],[144,2,145,10],[152,3,152,6],[85,1,85,6],[92,1,92,11],[86,1,86,6],[115,1,116,11],[120,2,120,9],[121,10,121,11],[132,7,132,11],[136,1,136,6],[121,2,121,9],[152,7,152,10],[133,7,133,11],[150,7,150,10],[104,9,104,11],[150,3,150,6],[104,6,104,7]]}
[]
[]
[null,null,null,null,"REGLAS PARA LA DETERMINACIÓN \nDE LA INFORMACIÓN DE INTERÉS NACIONAL "]
[null,null,null,null,"Formato Regla Décima. Información Estadística"]
[]
[]
[]
[null,"5. METODOLOGÍA PARA LA GENERACIÓN DE LA INFORMACIÓN PROPUESTA"]
[]
[null,"5.1 ¿Cuál es el universo de estudio de la información propuesta? \n       En el caso de que la información tenga varios universos de estudio es necesario listarlos"]
[]
[null,null,"Población en México, hogares y personas."]
[]
[]
[null,"5.2 ¿Cuáles son las unidades de observación de la información propuesta? \n       En el caso de que la información tenga varias unidades de observación es necesario listarlas"]
[]
[null,null,"Hogares y personas en México"]
[]
[]
[null,"5.3 ¿Cuál es la cobertura geográfica de la información propuesta?"]
[]
[null,null,"Nacional"]
[]
[]
[null,"5.4 ¿Cuál es la referencia temporal de la información propuesta?"]
[]
[]
[]
[]
[null,"5.5 Indique la frecuencia con la que se hace pública la información propuesta:"]
[null,"       (Marque las opciones correspondientes)"]
[null,null,null,null,null,"1. Anual"]
[]
[null,null,null,null,null,"2. Semestral"]
[]
[null,null,null,null,null,"3. Trimestral"]
[]
[null,null,null,null,null,"4. Bimestral"]
[]
[null,null,null,null,null,"5. Mensual"]
[]
[null,null,null,null,null,"6. Única"]
[]
[null,null,null,null,null,"7. No determinada"]
[]
[null,null,null,null,null,"8. Otra ","Cada dos años"]
[null,null,null,null,null,null,"Especifique"]
[null,"5.6 ¿Cuál es el tiempo entre la fecha final del periodo de referencia y la fecha en que se hace pública la información propuesta?"]
[]
[null,null,"13 meses"]
[]
[]
[null,"5.7 Señale la fecha o periodo más reciente en que la información propuesta fue generada:"]
[null,"      (Marque las opciones correspondientes)"]
[]
[null,null,null,"1. Año"]
[null,null,null,null,null,null,null,"(año)"]
[null,null,null,"2. Trimestre"]
[null,null,null,null,null,null,"(trimestre)","(año)"]
[null,null,null,"3. Mes"]
[null,null,null,null,null,null,"(mes)","(año)"]
[null,null,null,"4. Día"]
[null,null,null,null,null,"(día)","(mes)","(año)"]
[null,null,null,"5. Otra"]
[null,null,null,null,"Especifique periodo"]
[]
[null,"5.8 Liste los materiales considerados en el plan general de divulgación de resultados de la información propuesta y el lugar donde se pueden \n       consultar:"]
[null,"Nombre",null,null,null,null,null,"Lugar donde puede consultarse"]
[null,"Notas sobre la publicación de los resultados de la ENIGH 2010\nMicrodatos\nTabulados básicos",null,null,null,null,null,"http://www.inegi.org.mx/est/contenidos/Proyectos/Encuestas/Hogares/regulares/Enigh/Enigh2010/tradicional/default.aspx"]
[null,"Descripción de la base de datos\nCuestionarios\nDocumentos conceptuales",null,null,null,null,null,"http://www.inegi.org.mx/est/contenidos/Proyectos/Encuestas/Hogares/regulares/Enigh/Enigh2010/tradicional/default.aspx"]
[null,"Principales resultados",null,null,null,null,null,"http://www.inegi.org.mx/est/contenidos/Proyectos/Encuestas/Hogares/regulares/Enigh/Enigh2010/tradicional/default.aspx"]
[]
[null," "]
[null,"5.9 Si aplica estándares o recomendaciones de organismos nacionales o internacionales para la generación de la información propuesta señale los \n       documentos utilizados y los organismos que los elaboraron:"]
[]
[null,"Nombre del estándar o recomendación",null,null,null,null,null,"Organismo  elaborador "]
[null,"Grupo de expertos en estadísticas de los ingresos en los hogares  (Expert Group on Household Income Statistics)",null,null,null,null,null,"Grupo de Canberra http://www.lisproject.org/links/canberra/finalreport.pdf"]
[null,"Organización Internacional del Trabajo (OIT) (2003), Informe II, Estadísticas de ingresos y gastos de los hogares, Decimoséptima Conferencia Internacional de Estadísticos del Trabajo, Ginebra, 24 de noviembre a 3 de diciembre de 2003",null,null,null,null,null,"Organización Internacional del Trabajo http://www.ilo.org/public/english/bureau/stat/download/17thicls/r2hies.pdf"]
[null,"Counting and Multidimensional Poverty Measurement OPHI Working Paper No. 32 Sabina Alkire y James Foster",null,null,null,null,null,"Oxford Poverty & Human Development Initiative (OPHI) http://www.ophi.org.uk/wp-content/uploads/OPHI-wp32.pdf"]
[null,"PovMap se basa en un procedimiento de estimación en áreas pequeñas elaborado por el Banco Mundial (Lanjouw y Elbers, 2002, 2003).",null,null,null,null,null,"Banco Mundial                                                    http://go.worldbank.org/QG9L6V7P20"]
[]
[null,"5.10 Liste las fases en que se divide el proceso para generar la información propuesta y en el caso de que exista un manual de capacitación, indique \n         su nombre:"]
[null,"Fases del proceso",null,null,null,null,null,"Nombre del manual"]
[null,"Diseño conceptual",null,null,null,null,null,"Encuesta Nacional de Ingresos y Gastos de los Hogares 2010. ENIGH. Temas, categorías y variables \nhttp://www.inegi.org.mx/sistemas/biblioteca/detalle.aspx?c=27916&upc=702825002417&s=est&tg=0&f=2&pf=EncH"]
[null,"Diseño muestral",null,null,null,null,null,"Encuesta Nacional de Ingresos y Gastos de los Hogares 2010. ENIGH. Diseño muestral \nhttp://www.inegi.org.mx/sistemas/biblioteca/detalle.aspx?c=27914&upc=702825002420&s=est&tg=0&f=2&pf=EncH"]
[null,"Operativo de campo",null,null,null,null,null,"Encuesta Nacional de Ingresos y Gastos de los Hogares 2010. ENIGH. Operativo de campo \nhttp://www.inegi.org.mx/sistemas/biblioteca/detalle.aspx?c=27915&upc=702825002416&s=est&tg=0&f=2&pf=EncH"]
[null,"Criterios de validación",null,null,null,null,null,"Encuesta Nacional de Ingresos y Gastos de los Hogares 2010. ENIGH. Criterios de validación  \nhttp://www.inegi.org.mx/sistemas/biblioteca/detalle.aspx?c=27913&upc=702825002419&s=est&tg=0&f=2&pf=EncH"]
[null,"Presentación de resultados"]
[]
[]
[]
[]
[null,"5.11 Anote los medios en que recopila y almacena la información propuesta:"]
[null,"         (Marque las opciones correspondientes)"]
[]
[null,null,null,null,null,null,"Recopilación",null,null,"Almacenamiento"]
[null,null,"1. Formatos o expedientes impresos "]
[]
[null,null,"2. Archivos electrónicos en hoja de cálculo"]
[]
[null,null,"3. Base de datos:"]
[]
[null,null,"4. Otro:  "]
[]
[]
[null,null,null,null,null,null,"Especifique",null,null,"Especifique"]
[]
[null,"5.12 ¿Se recibe algún tipo de asistencia técnica o de capacitación de un organismo nacional o internacional que contribuya en el proceso de \n         generación de la información propuesta?"]
[null,"         (Marque las opciones correspondientes)"]
[]
[null,"Tipo de asistencia",null,null,null,null,"Si contesta Sí, especifique el organismo que proporciona la asistencia"]
[null,"Apoyo técnico",null,null,null,null,"Especifique:"]
[]
[null,"Capacitación ",null,null,null,null,"Especifique:"]
[]
[null,"6. METODOLOGÍA PARA LA GENERACIÓN DE LOS PROYECTOS ESTADÍSTICOS CON LOS QUE SE GENERA LA INFORMACIÓN PROPUESTA"]
[]
[null,"6.1 Liste los proyectos estadísticos con los que se genera la información propuesta e indique qué tipo de proyecto son:"]
[null,"Núm.","Nombre del proyecto estadístico ",null,null,null,null,null,null,null,"Tipo de proyecto"]
[null,1,"Encuesta Nacional de Ingresos y Gastos de los Hogares",null,null,null,null,null,null,null,1]
[]
[]
[]
[]
[null,null,"Tipos de proyectos"]
[null,null,"1. Recolección de datos mediante muestreo"]
[null,null,"2. Aprovechamiento de registros administrativos"]
[null,null,"3. Enumeración del total de elementos de la población de estudio"]
[null,null,"4. Generación de estadística derivada"]
[]
[null,"6.2 Si aplica estándares o recomendaciones de organismos nacionales o internacionales para la generación del proyecto estadístico, señale \"Sí\" y anote \n       los documentos utilizados y los organismos que lo elaboraron:"]
[]
[null,"Nombre del estándar o recomendación ",null,null,null,null,null,"Organismo  elaborador "]
[]
[]
[]
[]
[]
[null,"6.3 ¿Cuál es la temática del proyecto estadístico con el que se generó la información propuesta?"]
[]
[null,null,"Medición de los ingresos y gastos de los hogares"]
[]
[null,"6.4 ¿Cuál es el objetivo del proyecto estadístico con el que se generó la información propuesta?"]
[]
[null,null,"Proporcionar información sobre la distribución, monto y estructura del ingreso y gasto de los hogares; adicionalmente, ofrece información sobre las características sociodemográficas y ocupacionales de los integrantes del hogar, así como la infraestructura de la vivienda y el equipamiento del hogar."]
[]
[]
[null,"6.5 Indique si en el diseño conceptual del proyecto estadístico se realizaron las siguientes actividades; en caso afirmativo anexe los documentos\n       correspondientes:"]
[null,null,null,"Ordenamiento de los temas, categorías y variables \ny definición de los conceptos utilizados:",null,null,null,"Encuesta Nacional de Ingresos y Gastos de los Hogares 2010. ENIGH. Temas, categorías y variables \nhttp://www.inegi.org.mx/sistemas/biblioteca/detalle.aspx?c=27916&upc=702825002417&s=est&tg=0&f=2&pf=EncH"]
[]
[null,null,null,"Elaboración de algún(os) clasificador(es) o adopción de alguno ya disponible (cuál):"]
[]
[null,null,null,"Elaboración de criterios de validación para las variables captadas en el proyecto:"]
[]
[]
[]
[null,null,null,null,"4.1.1",null,null,"4.2.1","   "]
[null,null,null,1,{"$f":"IF(D158=1,\"Aprovechamiento de registros administrativos\",IF(D158=2,\"Enumeración del total de elementos de la población de estudio\",IF(D158=4,\"Generación de estadística derivada\",IF(D158=3,\"Encuesta por muestreo\", \"No declarado\"))))","v":"Aprovechamiento de registros administrativos"},null,null,{"$f":"CONCATENATE(E86,I157,E87,I157,E199,I157,E200,I157,E201,I157,E202,I157,E203,I157,E204,I157,E205,I157,E206,I157,E207)","v":"                              "}]
[null,null,null," ",{"$f":"EXACT(E158,\"Encuesta por Muestreo\")","v":false},{"$f":"EXACT(E158,\"Aprovechamiento de Registros Administrativos\")","v":false},{"$f":"EXACT(E158,\"Enumeración del total de elementos de la población de estudio\")","v":false},{"$f":"EXACT(E158,\"Generación de estadística derivada\")","v":false}]
[]
[]
[null,"4.3.7"]
[null,null,null,null,{"$f":"IF(C164=8,MID(I165,1,100),MID(D164,1,25))","v":"No declarado"},null,null,null,{"$f":"ISTEXT(#REF!)","v":false},null,{"$f":"IF(I163=TRUE,MID(#REF!,1,100),\"No declarado\")","v":"No declarado"}]
[null,null,0,{"$f":"IF(C164=1,\"Anual\",IF(C164=2,\"Semestral\",IF(C164=3,\"Trimestral\",IF(C164=4,\"Bimestral\",IF(C164=5,\"Mensual\",IF(C164=6,\"Única\",IF(C164=7,\"No determinada\",IF(C164=8,\"Otra periodicidad:\",\"No declarado\"))))))))","v":"No declarado"},null,null,"    ","    ",{"$f":"MID(#REF!,1,50)","v":{"$error":"#REF!"}}]
[null,null,null,null,null,null,null,null,{"$f":"CONCATENATE(D164,G164,K163)","v":"No declarado    No declarado"}]
[]
[null,null,null,2]
[]
[]
[]
[null,"6.6 Indique el tipo de muestreo utilizado en el proyecto estadístico. Anexar la documentación:\n       (Sólo aplica para proyectos en los que la recolección de datos se hace mediante técnicas de muestreo)"]
[null,"       Marque la opción correspondiente (sólo una)"]
[null,null,"¿Qué variable se utilizó para calcular el tamaño de la muestra?",null,null,null,null,"Promedio del\ningreso corriente total por hogar."]
[]
[null,null,null,"Probabilístico"]
[]
[null,null,null,null,"Nivel de confianza",null,null,0.9]
[]
[null,null,null,null,"Error de estimación",null,null,3.5000000000000003E-2]
[]
[null,null,null,null,"Tasa esperada de no respuesta",null,null,0.15]
[]
[null,null,null,"No probabilístico"]
[]
[null,null,null,null,"Frecuencia acumulada de la variable utilizada para la elección de la muestra"]
[]
[]
[]
[null,"7. ESTÁNDAR DE DOCUMENTACIÓN DE LA INFORMACIÓN PROPUESTA"]
[]
[null,"7.1 Si aplica estándares o recomendaciones de organismos nacionales o internacionales para la documentación de la información propuesta, señale \n       los estándares y el lugar donde puede consultarse la documentación correspondiente:"]
[]
[]
[null,"Nombre del estándar o recomendación ",null,null,null,null,null,"Lugar donde puede consultarse"]
[]
[]
[]
[]
[]
[]
[]
[]
[null,null,0,31,null,null,13]
[null,null,null,33,null,null,null,null,null,37]
[null,null,null,5,null,null,null,37,null,13]
[null,null,null,37]
[null,null,null,32]
[]
[]
[null,"1. Encuesta por muestreo"]
[null,"2. Aprovechamiento de registros administrativos"]
[null,"3. Enumeración del total de elementos de la población de estudio (semejante a un censo)"]
[null,"4. Generación de estadística derivada"]
[]
[]
[null,null,null,null,2]
[null,null,1,false]
[null,null,2,false]
[null,null,3,false]
[null,null,4,false]
[null,null,5,false]
[null,null,6,false]
[null,null,7,false]
[null,null,8,true]
[null,null,null,true]
[null,null,null,false]
[null,null,null,false]
[null,null,null,false]
[]
[null,null,null,false]
[]
[]
[]
[]
[]
[]
[]
[]
[]
[]
[]
[]
[]
[]
[]
[]
[]
[]
[]
[null,null,false,false]
[]
[]
[]
[]
[]
[]
[]
[]
[]
[]
[]
[]
[]
[]
[]
[]
[]
[]
[]
[]
[]
[]
[]
[]
[]
[]
[]
[]
[]
[]
[]
[]
[]
[]
[]
[]
[]
[]
[]
[]
[]
[]
[]
[]
[]
[]
[]
[]
[]
[null,null,false]

{"sheet":"Contra Portada","index":5,"n_rows":25,"n_cols":7,"rows_kept":25,"cut":false,"hidden":false,"merged":[[17,6,17,10],[19,6,19,10],[21,6,21,10],[24,5,24,10],[11,1,21,4],[24,1,24,4],[3,5,3,10],[8,1,9,10],[11,6,11,10],[13,6,13,10],[15,6,15,10],[4,4,4,10]]}
[]
[]
[]
[null,null,null,null,null,"REGLAS PARA LA DETERMINACIÓN\nDE LA INFORMACIÓN DE INTERÉS NACIONAL "]
[null,null,null,null,"Formato Regla Décima. Información Estadística"]
[]
[]
[]
[null,"Identificación de la persona que elaboró el formato"]
[]
[]
[null,"Persona responsable de proporcionar la información incluida en este formato: ",null,null,null,"Nombre:","Gonzalo"]
[]
[null,null,null,null,null,"Apellidos:","Hernández Licona"]
[]
[null,null,null,null,null,"Puesto:","Secretario Ejecutivo del Consejo Nacional de Evaluación de la Política de Desarrollo Social"]
[]
[null,null,null,null,null,"Domicilio oficial:","Boulevard Adolfo López Mateos #160\nColonia San Angel Inn\nC.P. 01060\nMéxico D.F. Delegación Álvaro Obregón"]
[null,null,null,null,null," "]
[null,null,null,null,null,"Teléfono oficial:","5481 7230"]
[]
[null,null,null,null,null,"Correo electrónico oficial:","ghernandezl@coneval.gob.mx"]
[]
[]
[null,"Fecha de entrega del formato:"]

{"sheet":"BASE DE DATOS","index":6,"n_rows":399,"n_cols":5,"rows_kept":399,"cut":false,"hidden":true,"merged":[]}
["NUMERO",null,"DESCRIPCION"]
[1.1000000000000001,null,{"$f":"+'Presentación-Inf prop'!E74","v":"No declarado"},null,{"$f":"IF(C2=\"No declarado\", \"\")","v":""}]
[1.2,null,{"$f":"+'Presentación-Inf prop'!E78","v":"No declarado"},{"$f":"IF(C3<>\"No declarado\", MID(C3,1,100),\"\")","v":""},{"$f":"IF(C3=\"No declarado\", \"\")","v":""}]
[1.3,null,{"$f":"+'Presentación-Inf prop'!C117","v":""},"",false]
[1.4,null,{"$f":"+'Presentación-Inf prop'!E82","v":"No declarado"},"",""]
[1.5,null,{"$f":"+'Presentación-Inf prop'!E86","v":"No declarado"},"",""]
[1.6,null,{"$f":"+'Presentación-Inf prop'!E91","v":"El gobierno federal, que por ley, tiene que alinear sus programas de combate a la pobreza con los indicadores de pobreza; las entidades federativas, los municipios, la academia y el público en general. \nConsejo Nacional de Evaluación de la Política de Desarrollo Social."},"El gobierno federal, que por ley, tiene que alinear sus programas de combate a la pobreza con los in",false]
[1.7,null,{"$f":"+'Presentación-Inf prop'!C95","v":"No declarado"},"",""]
[2.1,null,{"$f":"+'Presentación-Inf prop'!E99","v":"No declarado"},"",""]
["2.2a",null,{"$f":"+'Presentación-Inf prop'!E103","v":"Gonzalo"},"Gonzalo",false]
["2.2b",null,{"$f":"+'Presentación-Inf prop'!E107","v":"Hernández Licona"},"Hernández Licona",false]
["2.2c",null,{"$f":"+'Presentación-Inf prop'!E112","v":"Secretario Ejecutivo del Consejo Nacional de Evaluación de la Política de Desarrollo Social"},"Secretario Ejecutivo del Consejo Nacional de Evaluación de la Política de Desarrollo Social",false]
["2.2d",null,{"$f":"+'Presentación-Inf prop'!E121","v":"Boulevard Adolfo López Mateos #160\nColonia San Angel Inn\nC.P. 01060\nMéxico D.F. Delegación Álvaro Obregón"},"Boulevard Adolfo López Mateos #160\nColonia San Angel Inn\nC.P. 01060\nMéxico D.F. Delegación Álvaro Ob",false]
["2.2e",null,{"$f":"+'Presentación-Inf prop'!E125","v":"No declarado"},"",""]
["2.2f",null,{"$f":"+'Presentación-Inf prop'!E129","v":"ghernandezl@coneval.gob.mx"},"ghernandezl@coneval.gob.mx",false]
["3.1a",null,{"$f":"+#REF!","v":{"$error":"#REF!"}},{"$error":"#REF!"},{"$error":"#REF!"}]
["3.1b",null,{"$f":"+#REF!","v":{"$error":"#REF!"}},{"$error":"#REF!"},{"$error":"#REF!"}]
[3.21,null,{"$f":"+#REF!","v":{"$error":"#REF!"}},{"$error":"#REF!"},{"$error":"#REF!"}]
["3.2.1a",null,{"$f":"+#REF!","v":{"$error":"#REF!"}},{"$error":"#REF!"},{"$error":"#REF!"}]
["3.2.1b",null,{"$f":"+#REF!","v":{"$error":"#REF!"}},{"$error":"#REF!"},{"$error":"#REF!"}]
["3.2.1c",null,{"$f":"+#REF!","v":{"$error":"#REF!"}},{"$error":"#REF!"},{"$error":"#REF!"}]
["3.2.1d",null,{"$f":"+#REF!","v":{"$error":"#REF!"}},{"$error":"#REF!"},{"$error":"#REF!"}]
[3.22,null,{"$f":"+#REF!","v":{"$error":"#REF!"}},{"$error":"#REF!"},{"$error":"#REF!"}]
["3.2.2a",null,{"$f":"+#REF!","v":{"$error":"#REF!"}},{"$error":"#REF!"},{"$error":"#REF!"}]
["3.2.2b",null,{"$f":"+#REF!","v":{"$error":"#REF!"}},{"$error":"#REF!"},{"$error":"#REF!"}]
["3.2.2c",null,{"$f":"+#REF!","v":{"$error":"#REF!"}},{"$error":"#REF!"},{"$error":"#REF!"}]
["3.2.2d",null,{"$f":"+#REF!","v":{"$error":"#REF!"}},{"$error":"#REF!"},{"$error":"#REF!"}]
[3.23,null,{"$f":"+#REF!","v":{"$error":"#REF!"}},{"$error":"#REF!"},{"$error":"#REF!"}]
["3.2.3a",null,{"$f":"+#REF!","v":{"$error":"#REF!"}},{"$error":"#REF!"},{"$error":"#REF!"}]
["3.2.3b",null,{"$f":"+#REF!","v":{"$error":"#REF!"}},{"$error":"#REF!"},{"$error":"#REF!"}]
["3.2.3c",null,{"$f":"+#REF!","v":{"$error":"#REF!"}},{"$error":"#REF!"},{"$error":"#REF!"}]
["3.2.3d",null,{"$f":"+#REF!","v":{"$error":"#REF!"}},{"$error":"#REF!"},{"$error":"#REF!"}]
[3.3,null,{"$f":"+#REF!","v":{"$error":"#REF!"}},{"$error":"#REF!"},{"$error":"#REF!"}]
["3.4a1",null,{"$f":"+'Emer. y compromisos'!E40","v":0},"0",false]
["3.4a2",null,{"$f":"+'Emer. y compromisos'!E42","v":"No declarado"},"",""]
["3.4a3",null,{"$f":"+'Emer. y compromisos'!E43","v":"No declarado"},"",""]
["3.4a4",null,{"$f":"+'Emer. y compromisos'!E44","v":"No declarado"},"",""]
["3.4a5",null,{"$f":"+'Emer. y compromisos'!E45","v":"No declarado"},"",""]
["3.4a6",null,{"$f":"+'Emer. y compromisos'!E46","v":"No declarado"},"",""]
["3.4a7",null,{"$f":"+'Emer. y compromisos'!E47","v":"No declarado"},"",""]
["3.4a8",null,{"$f":"+'Emer. y compromisos'!E48","v":"No declarado"},"",""]
["3.4a9",null,{"$f":"+'Emer. y compromisos'!E49","v":"No declarado"},"",""]
["3.4a10",null,{"$f":"+'Emer. y compromisos'!E50","v":"No declarado"},"",""]
["3.4a11",null,{"$f":"+'Emer. y compromisos'!E51","v":"No declarado"},"",""]
["3.4a12",null,{"$f":"+'Emer. y compromisos'!E52","v":"No declarado"},"",""]
["3.4a13",null,{"$f":"+'Emer. y compromisos'!E53","v":"No declarado"},"",""]
["3.4b1",null,{"$f":"+'Emer. y compromisos'!E55","v":"No declarado"},"",""]
["3.4b2",null,{"$f":"+'Emer. y compromisos'!E56","v":"No declarado"},"",""]
["3.4b3",null,{"$f":"+'Emer. y compromisos'!E57","v":"No declarado"},"",""]
["3.4b4",null,{"$f":"+'Emer. y compromisos'!E58","v":"No declarado"},"",""]
["3.4b5",null,{"$f":"+'Emer. y compromisos'!E59","v":"No declarado"},"",""]
["3.4b6",null,{"$f":"+'Emer. y compromisos'!E60","v":"No declarado"},"",""]
["3.4b7",null,{"$f":"+'Emer. y compromisos'!E61","v":"No declarado"},"",""]
["3.4b8",null,{"$f":"+'Emer. y compromisos'!E62","v":"No declarado"},"",""]
["3.4b9",null,{"$f":"+'Emer. y compromisos'!E63","v":"No declarado"},"",""]
["3.4b10",null,{"$f":"+'Emer. y compromisos'!E64","v":"No declarado"},"",""]
["3.4b11",null,{"$f":"+'Emer. y compromisos'!E65","v":"No declarado"},"",""]
["3.4b12",null,{"$f":"+'Emer. y compromisos'!E66","v":"No declarado"},"",""]
["3.4b13",null,{"$f":"+'Emer. y compromisos'!E67","v":"No declarado"},"",""]
["3.4c1",null,{"$f":"+'Emer. y compromisos'!E69","v":"No declarado"},"",""]
["3.4c2",null,{"$f":"+'Emer. y compromisos'!E70","v":"No declarado"},"",""]
["3.4c3",null,{"$f":"+'Emer. y compromisos'!E71","v":"No declarado"},"",""]
["3.4c4",null,{"$f":"+'Emer. y compromisos'!E72","v":"No declarado"},"",""]
["3.4c5",null,{"$f":"+'Emer. y compromisos'!E73","v":"No declarado"},"",""]
["3.4c6",null,{"$f":"+'Emer. y compromisos'!E74","v":"No declarado"},"",""]
["3.4c7",null,{"$f":"+'Emer. y compromisos'!E75","v":"No declarado"},"",""]
["3.4c8",null,{"$f":"+'Emer. y compromisos'!E76","v":"No declarado"},{"$f":"IF(C67<>\"No declarado\", MID(C67,1,100),\"\")","v":""},{"$f":"IF(C67=\"No declarado\", \"\")","v":""}]
["3.4c9",null,{"$f":"+'Emer. y compromisos'!E77","v":"No declarado"},"",""]
["3.4c10",null,{"$f":"+'Emer. y compromisos'!E78","v":"No declarado"},"",""]
["3.4c11",null,{"$f":"+'Emer. y compromisos'!E79","v":"No declarado"},"",""]
["3.4c12",null,{"$f":"+'Emer. y compromisos'!E80","v":"No declarado"},"",""]
["3.4c13",null,{"$f":"+'Emer. y compromisos'!E81","v":"No declarado"},"",""]
["3.4d1",null,{"$f":"+'Emer. y compromisos'!E83","v":"No declarado"},"",""]
["3.4d2",null,{"$f":"+'Emer. y compromisos'!E84","v":"No declarado"},"",""]
["3.4d3",null,{"$f":"+'Emer. y compromisos'!E85","v":"No declarado"},"",""]
["3.4d4",null,{"$f":"+'Emer. y compromisos'!E86","v":"No declarado"},"",""]
["3.4d5",null,{"$f":"+'Emer. y compromisos'!E87","v":"No declarado"},"",""]
["3.4d6",null,{"$f":"+'Emer. y compromisos'!E88","v":"No declarado"},"",""]
["3.4d7",null,{"$f":"+'Emer. y compromisos'!E89","v":"No declarado"},"",""]
["3.4d8",null,{"$f":"+'Emer. y compromisos'!E90","v":"No declarado"},"",""]
["3.4d9",null,{"$f":"+'Emer. y compromisos'!E91","v":{"$error":"#REF!"}},{"$error":"#REF!"},{"$error":"#REF!"}]
["3.4d10",null,{"$f":"+'Emer. y compromisos'!E92","v":"No declarado"},"",""]
["3.4d11",null,{"$f":"+'Emer. y compromisos'!E93","v":"No declarado"},"",""]
["3.4d12",null,{"$f":"+'Emer. y compromisos'!E94","v":"No declarado"},"",""]
["3.4d13",null,{"$f":"+'Emer. y compromisos'!E95","v":"No declarado"},"",""]
[3.5,null,{"$f":"+'Emer. y compromisos'!H118","v":"No declarado"},"",""]
["3.5.a",null,{"$f":"+'Emer. y compromisos'!E97","v":"No declarado"},"",""]
[3.6,null,{"$f":"+'Emer. y compromisos'!H120","v":"Sí"},"Sí",false]
["3.6a1",null,{"$f":"+'Emer. y compromisos'!E100","v":"No declarado"},"",""]
["3.6a2",null,{"$f":"+'Emer. y compromisos'!E101","v":"No declarado"},"",""]
["3.6a3",null,{"$f":"+'Emer. y compromisos'!E102","v":"No declarado"},"",""]
["3.6a4",null,{"$f":"+'Emer. y compromisos'!E103","v":"No declarado"},"",""]
["3.6a5",null,{"$f":"+'Emer. y compromisos'!E104","v":"No declarado"},"",""]
["3.6b1",null,{"$f":"+'Emer. y compromisos'!E106","v":"Organización de las Naciones Unidas"},"Organización de las Naciones Unidas",false]
["3.6b2",null,{"$f":"+'Emer. y compromisos'!E107","v":"Organización de las Naciones Unidas"},"Organización de las Naciones Unidas",false]
["3.6b3",null,{"$f":"+'Emer. y compromisos'!E108","v":"Organización de las Naciones Unidas"},"Organización de las Naciones Unidas",false]
["3.6b4",null,{"$f":"+'Emer. y compromisos'!E109","v":"Organización de las Naciones Unidas"},"Organización de las Naciones Unidas",false]
["3.6b5",null,{"$f":"+'Emer. y compromisos'!E110","v":"No declarado"},"",""]
["4.1.1",null,{"$f":"+Metodología1!#REF!","v":{"$error":"#REF!"}},{"$error":"#REF!"},{"$error":"#REF!"}]
["4.2.1",null,{"$f":"+Metodología1!#REF!","v":{"$error":"#REF!"}},{"$error":"#REF!"},{"$error":"#REF!"}]
["4.3.1.a.1",null,{"$f":"+#REF!","v":{"$error":"#REF!"}},{"$error":"#REF!"},{"$error":"#REF!"}]
["4.3.1.a.2",null,{"$f":"+#REF!","v":{"$error":"#REF!"}},{"$error":"#REF!"},{"$error":"#REF!"}]
["4.3.1.a.3",null,{"$f":"+#REF!","v":{"$error":"#REF!"}},{"$error":"#REF!"},{"$error":"#REF!"}]
["4.3.1.a.4",null,{"$f":"+#REF!","v":{"$error":"#REF!"}},{"$error":"#REF!"},{"$error":"#REF!"}]
["4.3.1.a.5",null,{"$f":"+#REF!","v":{"$error":"#REF!"}},{"$error":"#REF!"},{"$error":"#REF!"}]
["4.3.1.a.6",null,{"$f":"+#REF!","v":{"$error":"#REF!"}},{"$error":"#REF!"},{"$error":"#REF!"}]
["4.3.1.a.7",null,{"$f":"+#REF!","v":{"$error":"#REF!"}},{"$error":"#REF!"},{"$error":"#REF!"}]
["4.3.1.a.8",null,{"$f":"+#REF!","v":{"$error":"#REF!"}},{"$error":"#REF!"},{"$error":"#REF!"}]
["4.3.1.a.9",null,{"$f":"+#REF!","v":{"$error":"#REF!"}},{"$error":"#REF!"},{"$error":"#REF!"}]
["4.3.1.a.10",null,{"$f":"+#REF!","v":{"$error":"#REF!"}},{"$error":"#REF!"},{"$error":"#REF!"}]
["4.3.1.a.11",null,{"$f":"+#REF!","v":{"$error":"#REF!"}},{"$error":"#REF!"},{"$error":"#REF!"}]
["4.3.1.a.12",null,{"$f":"+#REF!","v":{"$error":"#REF!"}},{"$error":"#REF!"},{"$error":"#REF!"}]
["4.3.1.a.13",null,{"$f":"+#REF!","v":{"$error":"#REF!"}},{"$error":"#REF!"},{"$error":"#REF!"}]
["4.3.1.a.14",null,{"$f":"+#REF!","v":{"$error":"#REF!"}},{"$error":"#REF!"},{"$error":"#REF!"}]
["4.3.1.a.15",null,{"$f":"+#REF!","v":{"$error":"#REF!"}},{"$error":"#REF!"},{"$error":"#REF!"}]
["4.3.1.a.16",null,{"$f":"+#REF!","v":{"$error":"#REF!"}},{"$error":"#REF!"},{"$error":"#REF!"}]
["4.3.1.a.17",null,{"$f":"+#REF!","v":{"$error":"#REF!"}},{"$error":"#REF!"},{"$error":"#REF!"}]
["4.3.1.a.18",null,{"$f":"+#REF!","v":{"$error":"#REF!"}},{"$error":"#REF!"},{"$error":"#REF!"}]
["4.3.1.a.19",null,{"$f":"+#REF!","v":{"$error":"#REF!"}},{"$error":"#REF!"},{"$error":"#REF!"}]
["4.3.1.a.20",null,{"$f":"+#REF!","v":{"$error":"#REF!"}},{"$error":"#REF!"},{"$error":"#REF!"}]
["4.3.1.a.21",null,{"$f":"+#REF!","v":{"$error":"#REF!"}},{"$error":"#REF!"},{"$error":"#REF!"}]
["4.3.1.a.22",null,{"$f":"+#REF!","v":{"$error":"#REF!"}},{"$error":"#REF!"},{"$error":"#REF!"}]
["4.3.1.a.23",null,{"$f":"+#REF!","v":{"$error":"#REF!"}},{"$error":"#REF!"},{"$error":"#REF!"}]
["4.3.1.a.24",null,{"$f":"+#REF!","v":{"$error":"#REF!"}},{"$error":"#REF!"},{"$error":"#REF!"}]
["4.3.1.b.1",null,{"$f":"+#REF!","v":{"$error":"#REF!"}},{"$error":"#REF!"},{"$error":"#REF!"}]
["4.3.1.b.2",null,{"$f":"+#REF!","v":{"$error":"#REF!"}},{"$error":"#REF!"},{"$error":"#REF!"}]
["4.3.1.b.3",null,{"$f":"+#REF!","v":{"$error":"#REF!"}},{"$error":"#REF!"},{"$error":"#REF!"}]
["4.3.1.b.4",null,{"$f":"+#REF!","v":{"$error":"#REF!"}},{"$error":"#REF!"},{"$error":"#REF!"}]
["4.3.1.b.5",null,{"$f":"+#REF!","v":{"$error":"#REF!"}},{"$error":"#REF!"},{"$error":"#REF!"}]
["4.3.1.b.6",null,{"$f":"+#REF!","v":{"$error":"#REF!"}},{"$error":"#REF!"},{"$error":"#REF!"}]
["4.3.1.b.7",null,{"$f":"+#REF!","v":{"$error":"#REF!"}},{"$f":"IF(C131<>\"No declarado\", MID(C131,1,100),\"\")","v":{"$error":"#REF!"}},{"$f":"IF(C131=\"No declarado\", \"\")","v":{"$error":"#REF!"}}]
["4.3.1.b.8",null,{"$f":"+#REF!","v":{"$error":"#REF!"}},{"$error":"#REF!"},{"$error":"#REF!"}]
["4.3.1.b.9",null,{"$f":"+#REF!","v":{"$error":"#REF!"}},{"$error":"#REF!"},{"$error":"#REF!"}]
["4.3.1.b.10",null,{"$f":"+#REF!","v":{"$error":"#REF!"}},{"$error":"#REF!"},{"$error":"#REF!"}]
["4.3.1.b.11",null,{"$f":"+#REF!","v":{"$error":"#REF!"}},{"$error":"#REF!"},{"$error":"#REF!"}]
["4.3.1.b.12",null,{"$f":"+#REF!","v":{"$error":"#REF!"}},{"$error":"#REF!"},{"$error":"#REF!"}]
["4.3.1.b.13",null,{"$f":"+#REF!","v":{"$error":"#REF!"}},{"$error":"#REF!"},{"$error":"#REF!"}]
["4.3.1.b.14",null,{"$f":"+#REF!","v":{"$error":"#REF!"}},{"$error":"#REF!"},{"$error":"#REF!"}]
["4.3.1.b.15",null,{"$f":"+#REF!","v":{"$error":"#REF!"}},{"$error":"#REF!"},{"$error":"#REF!"}]
["4.3.1.b.16",null,{"$f":"+#REF!","v":{"$error":"#REF!"}},{"$error":"#REF!"},{"$error":"#REF!"}]
["4.3.1.b.17",null,{"$f":"+#REF!","v":{"$error":"#REF!"}},{"$error":"#REF!"},{"$error":"#REF!"}]
["4.3.1.b.18",null,{"$f":"+#REF!","v":{"$error":"#REF!"}},{"$error":"#REF!"},{"$error":"#REF!"}]
["4.3.1.b.19",null,{"$f":"+#REF!","v":{"$error":"#REF!"}},{"$error":"#REF!"},{"$error":"#REF!"}]
["4.3.1.b.20",null,{"$f":"+#REF!","v":{"$error":"#REF!"}},{"$error":"#REF!"},{"$error":"#REF!"}]
["4.3.1.b.21",null,{"$f":"+#REF!","v":{"$error":"#REF!"}},{"$error":"#REF!"},{"$error":"#REF!"}]
["4.3.1.b.22",null,{"$f":"+#REF!","v":{"$error":"#REF!"}},{"$error":"#REF!"},{"$error":"#REF!"}]
["4.3.1.b.23",null,{"$f":"+#REF!","v":{"$error":"#REF!"}},{"$error":"#REF!"},{"$error":"#REF!"}]
["4.3.1.b.24",null,{"$f":"+#REF!","v":{"$error":"#REF!"}},{"$error":"#REF!"},{"$error":"#REF!"}]
["4.3.2",null,{"$f":"+#REF!","v":{"$error":"#REF!"}},{"$error":"#REF!"},{"$error":"#REF!"}]
["4.3.2.a",null,{"$f":"+#REF!","v":{"$error":"#REF!"}},{"$error":"#REF!"},{"$error":"#REF!"}]
["4.3.2.b",null,{"$f":"+#REF!","v":{"$error":"#REF!"}},{"$error":"#REF!"},{"$error":"#REF!"}]
["4.3.2.c",null,{"$f":"+#REF!","v":{"$error":"#REF!"}},{"$error":"#REF!"},{"$error":"#REF!"}]
["4.3.2.d",null,{"$f":"+#REF!","v":{"$error":"#REF!"}},{"$error":"#REF!"},{"$error":"#REF!"}]
["4.3.2.e",null,{"$f":"+#REF!","v":{"$error":"#REF!"}},{"$error":"#REF!"},{"$error":"#REF!"}]
["4.3.2.f",null,{"$f":"+#REF!","v":{"$error":"#REF!"}},{"$error":"#REF!"},{"$error":"#REF!"}]
["4.3.2.g",null,{"$f":"+#REF!","v":{"$error":"#REF!"}},{"$error":"#REF!"},{"$error":"#REF!"}]
["4.3.2.h",null,{"$f":"+#REF!","v":{"$error":"#REF!"}},{"$error":"#REF!"},{"$error":"#REF!"}]
["4.3.3.1.1",null,{"$f":"+#REF!","v":{"$error":"#REF!"}},{"$error":"#REF!"},{"$error":"#REF!"}]
["4.3.3.1.2",null,{"$f":"+#REF!","v":{"$error":"#REF!"}},{"$error":"#REF!"},{"$error":"#REF!"}]
["4.3.3.1.3",null,{"$f":"+#REF!","v":{"$error":"#REF!"}},{"$error":"#REF!"},{"$error":"#REF!"}]
["4.3.3.1.4",null,{"$f":"+#REF!","v":{"$error":"#REF!"}},{"$error":"#REF!"},{"$error":"#REF!"}]
["4.3.3.1.5",null,{"$f":"+#REF!","v":{"$error":"#REF!"}},{"$error":"#REF!"},{"$error":"#REF!"}]
["4.3.3.1.6",null,{"$f":"+#REF!","v":{"$error":"#REF!"}},{"$error":"#REF!"},{"$error":"#REF!"}]
["4.3.3.1.7",null,{"$f":"+#REF!","v":{"$error":"#REF!"}},{"$error":"#REF!"},{"$error":"#REF!"}]
["4.3.3.1.8",null,{"$f":"+#REF!","v":{"$error":"#REF!"}},{"$error":"#REF!"},{"$error":"#REF!"}]
["4.3.3.1.9",null,{"$f":"+#REF!","v":{"$error":"#REF!"}},{"$error":"#REF!"},{"$error":"#REF!"}]
["4.3.3.1.10",null,{"$f":"+#REF!","v":{"$error":"#REF!"}},{"$error":"#REF!"},{"$error":"#REF!"}]
["4.3.3.1.11",null,{"$f":"+#REF!","v":{"$error":"#REF!"}},{"$error":"#REF!"},{"$error":"#REF!"}]
["4.3.3.1.12",null,{"$f":"+#REF!","v":{"$error":"#REF!"}},{"$error":"#REF!"},{"$error":"#REF!"}]
["4.3.3.1.13",null,{"$f":"+#REF!","v":{"$error":"#REF!"}},{"$error":"#REF!"},{"$error":"#REF!"}]
["4.3.3.1.14",null,{"$f":"+#REF!","v":{"$error":"#REF!"}},{"$error":"#REF!"},{"$error":"#REF!"}]
["4.3.3.1.15",null,{"$f":"+#REF!","v":{"$error":"#REF!"}},{"$error":"#REF!"},{"$error":"#REF!"}]
["4.3.3.1.16",null,{"$f":"+#REF!","v":{"$error":"#REF!"}},{"$error":"#REF!"},{"$error":"#REF!"}]
["4.3.3.1.17",null,{"$f":"+#REF!","v":{"$error":"#REF!"}},{"$error":"#REF!"},{"$error":"#REF!"}]
["4.3.3.1.18",null,{"$f":"+#REF!","v":{"$error":"#REF!"}},{"$error":"#REF!"},{"$error":"#REF!"}]
["4.3.3.1.19",null,{"$f":"+#REF!","v":{"$error":"#REF!"}},{"$error":"#REF!"},{"$error":"#REF!"}]
["4.3.3.1.20",null,{"$f":"+#REF!","v":{"$error":"#REF!"}},{"$error":"#REF!"},{"$error":"#REF!"}]
["4.3.3.1.21",null,{"$f":"+#REF!","v":{"$error":"#REF!"}},{"$error":"#REF!"},{"$error":"#REF!"}]
["4.3.3.1.22",null,{"$f":"+#REF!","v":{"$error":"#REF!"}},{"$error":"#REF!"},{"$error":"#REF!"}]
["4.3.3.1.23",null,{"$f":"+#REF!","v":{"$error":"#REF!"}},{"$error":"#REF!"},{"$error":"#REF!"}]
["4.3.3.1.24",null,{"$f":"+#REF!","v":{"$error":"#REF!"}},{"$error":"#REF!"},{"$error":"#REF!"}]
["4.3.3.2.1",null,{"$f":"+#REF!","v":{"$error":"#REF!"}},{"$error":"#REF!"},{"$error":"#REF!"}]
["4.3.3.2.2",null,{"$f":"+#REF!","v":{"$error":"#REF!"}},{"$error":"#REF!"},{"$error":"#REF!"}]
["4.3.3.2.3",null,{"$f":"+#REF!","v":{"$error":"#REF!"}},{"$error":"#REF!"},{"$error":"#REF!"}]
["4.3.3.2.4",null,{"$f":"+#REF!","v":{"$error":"#REF!"}},{"$error":"#REF!"},{"$error":"#REF!"}]
["4.3.3.2.5",null,{"$f":"+#REF!","v":{"$error":"#REF!"}},{"$error":"#REF!"},{"$error":"#REF!"}]
["4.3.3.2.6",null,{"$f":"+#REF!","v":{"$error":"#REF!"}},{"$error":"#REF!"},{"$error":"#REF!"}]
["4.3.3.2.7",null,{"$f":"+#REF!","v":{"$error":"#REF!"}},{"$error":"#REF!"},{"$error":"#REF!"}]
["4.3.3.2.8",null,{"$f":"+#REF!","v":{"$error":"#REF!"}},{"$error":"#REF!"},{"$error":"#REF!"}]
["4.3.3.2.9",null,{"$f":"+#REF!","v":{"$error":"#REF!"}},{"$error":"#REF!"},{"$error":"#REF!"}]
["4.3.3.2.10",null,{"$f":"+#REF!","v":{"$error":"#REF!"}},{"$error":"#REF!"},{"$error":"#REF!"}]
["4.3.3.2.11",null,{"$f":"+#REF!","v":{"$error":"#REF!"}},{"$error":"#REF!"},{"$error":"#REF!"}]
["4.3.3.2.12",null,{"$f":"+#REF!","v":{"$error":"#REF!"}},{"$error":"#REF!"},{"$error":"#REF!"}]
["4.3.3.2.13",null,{"$f":"+#REF!","v":{"$error":"#REF!"}},{"$error":"#REF!"},{"$error":"#REF!"}]
["4.3.3.2.14",null,{"$f":"+#REF!","v":{"$error":"#REF!"}},{"$f":"IF(C195<>\"No declarado\", MID(C195,1,100),\"\")","v":{"$error":"#REF!"}},{"$f":"IF(C195=\"No declarado\", \"\")","v":{"$error":"#REF!"}}]
["4.3.3.2.15",null,{"$f":"+#REF!","v":{"$error":"#REF!"}},{"$error":"#REF!"},{"$error":"#REF!"}]
["4.3.3.2.16",null,{"$f":"+#REF!","v":{"$error":"#REF!"}},{"$error":"#REF!"},{"$error":"#REF!"}]
["4.3.3.2.17",null,{"$f":"+#REF!","v":{"$error":"#REF!"}},{"$error":"#REF!"},{"$error":"#REF!"}]
["4.3.3.2.18",null,{"$f":"+#REF!","v":{"$error":"#REF!"}},{"$error":"#REF!"},{"$error":"#REF!"}]
["4.3.3.2.19",null,{"$f":"+#REF!","v":{"$error":"#REF!"}},{"$error":"#REF!"},{"$error":"#REF!"}]
["4.3.3.2.20",null,{"$f":"+#REF!","v":{"$error":"#REF!"}},{"$error":"#REF!"},{"$error":"#REF!"}]
["4.3.3.2.21",null,{"$f":"+#REF!","v":{"$error":"#REF!"}},{"$error":"#REF!"},{"$error":"#REF!"}]
["4.3.3.2.22",null,{"$f":"+#REF!","v":{"$error":"#REF!"}},{"$error":"#REF!"},{"$error":"#REF!"}]
["4.3.3.2.23",null,{"$f":"+#REF!","v":{"$error":"#REF!"}},{"$error":"#REF!"},{"$error":"#REF!"}]
["4.3.3.2.24",null,{"$f":"+#REF!","v":{"$error":"#REF!"}},{"$error":"#REF!"},{"$error":"#REF!"}]
["4.3.3.2.25",null,{"$f":"+#REF!","v":{"$error":"#REF!"}},{"$error":"#REF!"},{"$error":"#REF!"}]
["4.3.3.2.26",null,{"$f":"+#REF!","v":{"$error":"#REF!"}},{"$error":"#REF!"},{"$error":"#REF!"}]
["4.3.3.2.27",null,{"$f":"+#REF!","v":{"$error":"#REF!"}},{"$error":"#REF!"},{"$error":"#REF!"}]
["4.3.3.2.28",null,{"$f":"+#REF!","v":{"$error":"#REF!"}},{"$error":"#REF!"},{"$error":"#REF!"}]
["4.3.3.2.29",null,{"$f":"+#REF!","v":{"$error":"#REF!"}},{"$error":"#REF!"},{"$error":"#REF!"}]
["4.3.3.2.30",null,{"$f":"+#REF!","v":{"$error":"#REF!"}},{"$error":"#REF!"},{"$error":"#REF!"}]
["4.3.4",null,{"$f":"+#REF!","v":{"$error":"#REF!"}},{"$error":"#REF!"}," "]
["4.3.5",null,{"$f":"+#REF!","v":{"$error":"#REF!"}},{"$error":"#REF!"}," "]
["4.3.6",null,{"$f":"+#REF!","v":{"$error":"#REF!"}},{"$error":"#REF!"}," "]
["4.3.6a",null,{"$f":"+#REF!","v":{"$error":"#REF!"}},{"$error":"#REF!"}," "]
["4.3.7",null,{"$f":"+#REF!","v":{"$error":"#REF!"}},{"$error":"#REF!"}," "]
["4.4.1",null,null,""," "]
["4.4.1.a1",null,{"$f":"+#REF!","v":{"$error":"#REF!"}},{"$error":"#REF!"},{"$error":"#REF!"}]
["4.4.1.a2",null,{"$f":"+#REF!","v":{"$error":"#REF!"}},{"$error":"#REF!"},{"$error":"#REF!"}]
["4.4.1.a3",null,{"$f":"+#REF!","v":{"$error":"#REF!"}},{"$error":"#REF!"},{"$error":"#REF!"}]
["4.4.1.a4",null,{"$f":"+#REF!","v":{"$error":"#REF!"}},{"$error":"#REF!"},{"$error":"#REF!"}]
["4.4.1.a5",null,{"$f":"+#REF!","v":{"$error":"#REF!"}},{"$error":"#REF!"},{"$error":"#REF!"}]
["4.4.1.a6",null,{"$f":"+#REF!","v":{"$error":"#REF!"}},{"$error":"#REF!"},{"$error":"#REF!"}]
["4.4.1.a7",null,{"$f":"+#REF!","v":{"$error":"#REF!"}},{"$error":"#REF!"},{"$error":"#REF!"}]
["4.4.1.a8",null,{"$f":"+#REF!","v":{"$error":"#REF!"}},{"$error":"#REF!"},{"$error":"#REF!"}]
["4.4.1.b1",null,{"$f":"+#REF!","v":{"$error":"#REF!"}},{"$error":"#REF!"},{"$error":"#REF!"}]
["4.4.1.b2",null,{"$f":"+#REF!","v":{"$error":"#REF!"}},{"$error":"#REF!"},{"$error":"#REF!"}]
["4.4.1.b3",null,{"$f":"+#REF!","v":{"$error":"#REF!"}},{"$error":"#REF!"},{"$error":"#REF!"}]
["4.4.1.b4",null,{"$f":"+#REF!","v":{"$error":"#REF!"}},{"$error":"#REF!"},{"$error":"#REF!"}]
["4.4.1.b5",null,{"$f":"+#REF!","v":{"$error":"#REF!"}},{"$error":"#REF!"},{"$error":"#REF!"}]
["4.4.1.b6",null,{"$f":"+#REF!","v":{"$error":"#REF!"}},{"$error":"#REF!"},{"$error":"#REF!"}]
["4.4.1.b7",null,{"$f":"+#REF!","v":{"$error":"#REF!"}},{"$error":"#REF!"},{"$error":"#REF!"}]
["4.4.1.b8",null,{"$f":"+#REF!","v":{"$error":"#REF!"}},{"$error":"#REF!"},{"$error":"#REF!"}]
["4.4.1.c1",null,{"$f":"+#REF!","v":{"$error":"#REF!"}},{"$error":"#REF!"},{"$error":"#REF!"}]
["4.4.1.c2",null,{"$f":"+#REF!","v":{"$error":"#REF!"}},{"$error":"#REF!"},{"$error":"#REF!"}]
["4.4.1.c3",null,{"$f":"+#REF!","v":{"$error":"#REF!"}},{"$error":"#REF!"},{"$error":"#REF!"}]
["4.4.1.c4",null,{"$f":"+#REF!","v":{"$error":"#REF!"}},{"$error":"#REF!"},{"$error":"#REF!"}]
["4.4.1.c5",null,{"$f":"+#REF!","v":{"$error":"#REF!"}},{"$error":"#REF!"},{"$error":"#REF!"}]
["4.4.1.c6",null,{"$f":"+#REF!","v":{"$error":"#REF!"}},{"$error":"#REF!"},{"$error":"#REF!"}]
["4.4.1.c7",null,{"$f":"+#REF!","v":{"$error":"#REF!"}},{"$error":"#REF!"},{"$error":"#REF!"}]
["4.4.1.c8",null,{"$f":"+#REF!","v":{"$error":"#REF!"}},{"$error":"#REF!"},{"$error":"#REF!"}]
["4.4.1.d1",null,{"$f":"+#REF!","v":{"$error":"#REF!"}},{"$error":"#REF!"},{"$error":"#REF!"}]
["4.4.1.d2",null,{"$f":"+#REF!","v":{"$error":"#REF!"}},{"$error":"#REF!"},{"$error":"#REF!"}]
["4.4.1.d3",null,{"$f":"+#REF!","v":{"$error":"#REF!"}},{"$error":"#REF!"},{"$error":"#REF!"}]
["4.4.1.d4",null,{"$f":"+#REF!","v":{"$error":"#REF!"}},{"$error":"#REF!"},{"$error":"#REF!"}]
["4.4.1.d5",null,{"$f":"+#REF!","v":{"$error":"#REF!"}},{"$error":"#REF!"},{"$error":"#REF!"}]
["4.4.1.d6",null,{"$f":"+#REF!","v":{"$error":"#REF!"}},{"$error":"#REF!"},{"$error":"#REF!"}]
["4.4.1.d7",null,{"$f":"+#REF!","v":{"$error":"#REF!"}},{"$error":"#REF!"},{"$error":"#REF!"}]
["4.4.1.d8",null,{"$f":"+#REF!","v":{"$error":"#REF!"}},{"$error":"#REF!"},{"$error":"#REF!"}]
["4.4.1.e1",null,{"$f":"+#REF!","v":{"$error":"#REF!"}},{"$error":"#REF!"},{"$error":"#REF!"}]
["4.4.1.e2",null,{"$f":"+#REF!","v":{"$error":"#REF!"}},{"$error":"#REF!"},{"$error":"#REF!"}]
["4.4.1.e3",null,{"$f":"+#REF!","v":{"$error":"#REF!"}},{"$error":"#REF!"},{"$error":"#REF!"}]
["4.4.1.e4",null,{"$f":"+#REF!","v":{"$error":"#REF!"}},{"$error":"#REF!"},{"$error":"#REF!"}]
["4.4.1.e5",null,{"$f":"+#REF!","v":{"$error":"#REF!"}},{"$error":"#REF!"},{"$error":"#REF!"}]
["4.4.1.e6",null,{"$f":"+#REF!","v":{"$error":"#REF!"}},{"$error":"#REF!"},{"$error":"#REF!"}]
["4.4.1.e7",null,{"$f":"+#REF!","v":{"$error":"#REF!"}},{"$error":"#REF!"},{"$error":"#REF!"}]
["4.4.1.e8",null,{"$f":"+#REF!","v":{"$error":"#REF!"}},{"$error":"#REF!"},{"$error":"#REF!"}]
["4.4.1.f1",null,{"$f":"+#REF!","v":{"$error":"#REF!"}},{"$error":"#REF!"},{"$error":"#REF!"}]
["4.4.1.f2",null,{"$f":"+#REF!","v":{"$error":"#REF!"}},{"$f":"IF(C259<>\"No declarado\", MID(C259,1,100),\"\")","v":{"$error":"#REF!"}},{"$f":"IF(C259=\"No declarado\", \"\")","v":{"$error":"#REF!"}}]
["4.4.1.f3",null,{"$f":"+#REF!","v":{"$error":"#REF!"}},{"$error":"#REF!"},{"$error":"#REF!"}]
["4.4.1.f4",null,{"$f":"+#REF!","v":{"$error":"#REF!"}},{"$error":"#REF!"},{"$error":"#REF!"}]
["4.4.1.f5",null,{"$f":"+#REF!","v":{"$error":"#REF!"}},{"$error":"#REF!"},{"$error":"#REF!"}]
["4.4.1.f6",null,{"$f":"+#REF!","v":{"$error":"#REF!"}},{"$error":"#REF!"},{"$error":"#REF!"}]
["4.4.1.f7",null,{"$f":"+#REF!","v":{"$error":"#REF!"}},{"$error":"#REF!"},{"$error":"#REF!"}]
["4.4.1.f8",null,{"$f":"+#REF!","v":{"$error":"#REF!"}},{"$error":"#REF!"},{"$error":"#REF!"}]
["4.4.1.g1",null,{"$f":"+#REF!","v":{"$error":"#REF!"}},{"$error":"#REF!"},{"$error":"#REF!"}]
["4.4.1.g2",null,{"$f":"+#REF!","v":{"$error":"#REF!"}},{"$error":"#REF!"},{"$error":"#REF!"}]
["4.4.1.g3",null,{"$f":"+#REF!","v":{"$error":"#REF!"}},{"$error":"#REF!"},{"$error":"#REF!"}]
["4.4.1.g4",null,{"$f":"+#REF!","v":{"$error":"#REF!"}},{"$error":"#REF!"},{"$error":"#REF!"}]
["4.4.1.g5",null,{"$f":"+#REF!","v":{"$error":"#REF!"}},{"$error":"#REF!"},{"$error":"#REF!"}]
["4.4.1.g6",null,{"$f":"+#REF!","v":{"$error":"#REF!"}},{"$error":"#REF!"},{"$error":"#REF!"}]
["4.4.1.g7",null,{"$f":"+#REF!","v":{"$error":"#REF!"}},{"$error":"#REF!"},{"$error":"#REF!"}]
["4.4.1.g8",null,{"$f":"+#REF!","v":{"$error":"#REF!"}},{"$error":"#REF!"},{"$error":"#REF!"}]
["4.4.1.h1",null,{"$f":"+#REF!","v":{"$error":"#REF!"}},{"$error":"#REF!"},{"$error":"#REF!"}]
["4.4.1.h2",null,{"$f":"+#REF!","v":{"$error":"#REF!"}},{"$error":"#REF!"},{"$error":"#REF!"}]
["4.4.1.h3",null,{"$f":"+#REF!","v":{"$error":"#REF!"}},{"$error":"#REF!"},{"$error":"#REF!"}]
["4.4.1.h4",null,{"$f":"+#REF!","v":{"$error":"#REF!"}},{"$error":"#REF!"},{"$error":"#REF!"}]
["4.4.1.h5",null,{"$f":"+#REF!","v":{"$error":"#REF!"}},{"$error":"#REF!"},{"$error":"#REF!"}]
["4.4.1.h6",null,{"$f":"+#REF!","v":{"$error":"#REF!"}},{"$error":"#REF!"},{"$error":"#REF!"}]
["4.4.1.h7",null,{"$f":"+#REF!","v":{"$error":"#REF!"}},{"$error":"#REF!"},{"$error":"#REF!"}]
["4.4.1.h8",null,{"$f":"+#REF!","v":{"$error":"#REF!"}},{"$error":"#REF!"},{"$error":"#REF!"}]
["4.4.1.i1",null,{"$f":"+#REF!","v":{"$error":"#REF!"}},{"$error":"#REF!"},{"$error":"#REF!"}]
["4.4.1.i2",null,{"$f":"+#REF!","v":{"$error":"#REF!"}},{"$error":"#REF!"},{"$error":"#REF!"}]
["4.4.1.i3",null,{"$f":"+#REF!","v":{"$error":"#REF!"}},{"$error":"#REF!"},{"$error":"#REF!"}]
["4.4.1.i4",null,{"$f":"+#REF!","v":{"$error":"#REF!"}},{"$error":"#REF!"},{"$error":"#REF!"}]
["4.4.1.i5",null,{"$f":"+#REF!","v":{"$error":"#REF!"}},{"$error":"#REF!"},{"$error":"#REF!"}]
["4.4.1.i6",null,{"$f":"+#REF!","v":{"$error":"#REF!"}},{"$error":"#REF!"},{"$error":"#REF!"}]
["4.4.1.i7",null,{"$f":"+#REF!","v":{"$error":"#REF!"}},{"$error":"#REF!"},{"$error":"#REF!"}]
["4.4.1.i8",null,{"$f":"+#REF!","v":{"$error":"#REF!"}},{"$error":"#REF!"},{"$error":"#REF!"}]
["4.4.1.j1",null,{"$f":"+#REF!","v":{"$error":"#REF!"}},{"$error":"#REF!"},{"$error":"#REF!"}]
["4.4.1.j2",null,{"$f":"+#REF!","v":{"$error":"#REF!"}},{"$error":"#REF!"},{"$error":"#REF!"}]
["4.4.1.j3",null,{"$f":"+#REF!","v":{"$error":"#REF!"}},{"$error":"#REF!"},{"$error":"#REF!"}]
["4.4.1.j4",null,{"$f":"+#REF!","v":{"$error":"#REF!"}},{"$error":"#REF!"},{"$error":"#REF!"}]
["4.4.1.j5",null,{"$f":"+#REF!","v":{"$error":"#REF!"}},{"$error":"#REF!"},{"$error":"#REF!"}]
["4.4.1.j6",null,{"$f":"+#REF!","v":{"$error":"#REF!"}},{"$error":"#REF!"},{"$error":"#REF!"}]
["4.4.1.j7",null,{"$f":"+#REF!","v":{"$error":"#REF!"}},{"$error":"#REF!"},{"$error":"#REF!"}]
["4.4.1.j8",null,{"$f":"+#REF!","v":{"$error":"#REF!"}},{"$error":"#REF!"},{"$error":"#REF!"}]
["4.4.1.k1",null,{"$f":"+#REF!","v":{"$error":"#REF!"}},{"$error":"#REF!"},{"$error":"#REF!"}]
["4.4.1.k2",null,{"$f":"+#REF!","v":{"$error":"#REF!"}},{"$error":"#REF!"},{"$error":"#REF!"}]
["4.4.1.k3",null,{"$f":"+#REF!","v":{"$error":"#REF!"}},{"$error":"#REF!"},{"$error":"#REF!"}]
["4.4.1.k4",null,{"$f":"+#REF!","v":{"$error":"#REF!"}},{"$error":"#REF!"},{"$error":"#REF!"}]
["4.4.1.k5",null,{"$f":"+#REF!","v":{"$error":"#REF!"}},{"$error":"#REF!"},{"$error":"#REF!"}]
["4.4.1.k6",null,{"$f":"+#REF!","v":{"$error":"#REF!"}},{"$error":"#REF!"},{"$error":"#REF!"}]
["4.4.1.k7",null,{"$f":"+#REF!","v":{"$error":"#REF!"}},{"$error":"#REF!"},{"$error":"#REF!"}]
["4.4.1.k8",null,{"$f":"+#REF!","v":{"$error":"#REF!"}},{"$error":"#REF!"},{"$error":"#REF!"}]
["4.4.1.l1",null,{"$f":"+#REF!","v":{"$error":"#REF!"}},{"$error":"#REF!"},{"$error":"#REF!"}]
["4.4.1.l2",null,{"$f":"+#REF!","v":{"$error":"#REF!"}},{"$error":"#REF!"},{"$error":"#REF!"}]
["4.4.1.l3",null,{"$f":"+#REF!","v":{"$error":"#REF!"}},{"$error":"#REF!"},{"$error":"#REF!"}]
["4.4.1.l4",null,{"$f":"+#REF!","v":{"$error":"#REF!"}},{"$error":"#REF!"},{"$error":"#REF!"}]
["4.4.1.l5",null,{"$f":"+#REF!","v":{"$error":"#REF!"}},{"$error":"#REF!"},{"$error":"#REF!"}]
["4.4.1.l6",null,{"$f":"+#REF!","v":{"$error":"#REF!"}},{"$error":"#REF!"},{"$error":"#REF!"}]
["4.4.1.l7",null,{"$f":"+#REF!","v":{"$error":"#REF!"}},{"$error":"#REF!"},{"$error":"#REF!"}]
["4.4.1.l8",null,{"$f":"+#REF!","v":{"$error":"#REF!"}},{"$error":"#REF!"},{"$error":"#REF!"}]
["4.4.1.m1",null,{"$f":"+#REF!","v":{"$error":"#REF!"}},{"$error":"#REF!"},{"$error":"#REF!"}]
["4.4.1.m2",null,{"$f":"+#REF!","v":{"$error":"#REF!"}},{"$error":"#REF!"},{"$error":"#REF!"}]
["4.4.1.m3",null,{"$f":"+#REF!","v":{"$error":"#REF!"}},{"$error":"#REF!"},{"$error":"#REF!"}]
["4.4.1.m4",null,{"$f":"+#REF!","v":{"$error":"#REF!"}},{"$error":"#REF!"},{"$error":"#REF!"}]
["4.4.1.m5",null,{"$f":"+#REF!","v":{"$error":"#REF!"}},{"$error":"#REF!"},{"$error":"#REF!"}]
["4.4.1.m6",null,{"$f":"+#REF!","v":{"$error":"#REF!"}},{"$error":"#REF!"},{"$error":"#REF!"}]
["4.4.1.m7",null,{"$f":"+#REF!","v":{"$error":"#REF!"}},{"$error":"#REF!"},{"$error":"#REF!"}]
["4.4.1.m8",null,{"$f":"+#REF!","v":{"$error":"#REF!"}},{"$error":"#REF!"},{"$error":"#REF!"}]
["4.4.1.n1",null,{"$f":"+#REF!","v":{"$error":"#REF!"}},{"$error":"#REF!"},{"$error":"#REF!"}]
["4.4.1.n2",null,{"$f":"+#REF!","v":{"$error":"#REF!"}},{"$f":"IF(C323<>\"No declarado\", MID(C323,1,100),\"\")","v":{"$error":"#REF!"}},{"$f":"IF(C323=\"No declarado\", \"\")","v":{"$error":"#REF!"}}]
["4.4.1.n3",null,{"$f":"+#REF!","v":{"$error":"#REF!"}},{"$error":"#REF!"},{"$error":"#REF!"}]
["4.4.1.n4",null,{"$f":"+#REF!","v":{"$error":"#REF!"}},{"$error":"#REF!"},{"$error":"#REF!"}]
["4.4.1.n5",null,{"$f":"+#REF!","v":{"$error":"#REF!"}},{"$error":"#REF!"},{"$error":"#REF!"}]
["4.4.1.n6",null,{"$f":"+#REF!","v":{"$error":"#REF!"}},{"$error":"#REF!"},{"$error":"#REF!"}]
["4.4.1.n7",null,{"$f":"+#REF!","v":{"$error":"#REF!"}},{"$error":"#REF!"},{"$error":"#REF!"}]
["4.4.1.n8",null,{"$f":"+#REF!","v":{"$error":"#REF!"}},{"$error":"#REF!"},{"$error":"#REF!"}]
["4.4.1.ñ1",null,{"$f":"+#REF!","v":{"$error":"#REF!"}},{"$error":"#REF!"},{"$error":"#REF!"}]
["4.4.1.ñ2",null,{"$f":"+#REF!","v":{"$error":"#REF!"}},{"$error":"#REF!"},{"$error":"#REF!"}]
["4.4.1.ñ3",null,{"$f":"+#REF!","v":{"$error":"#REF!"}},{"$error":"#REF!"},{"$error":"#REF!"}]
["4.4.1.ñ4",null,{"$f":"+#REF!","v":{"$error":"#REF!"}},{"$error":"#REF!"},{"$error":"#REF!"}]
["4.4.1.ñ5",null,{"$f":"+#REF!","v":{"$error":"#REF!"}},{"$error":"#REF!"},{"$error":"#REF!"}]
["4.4.1.ñ6",null,{"$f":"+#REF!","v":{"$error":"#REF!"}},{"$error":"#REF!"},{"$error":"#REF!"}]
["4.4.1.ñ7",null,{"$f":"+#REF!","v":{"$error":"#REF!"}},{"$error":"#REF!"},{"$error":"#REF!"}]
["4.4.1.ñ8",null,{"$f":"+#REF!","v":{"$error":"#REF!"}},{"$error":"#REF!"},{"$error":"#REF!"}]
["4.4.1.o1",null,{"$f":"+#REF!","v":{"$error":"#REF!"}},{"$error":"#REF!"},{"$error":"#REF!"}]
["4.4.1.o2",null,{"$f":"+#REF!","v":{"$error":"#REF!"}},{"$error":"#REF!"},{"$error":"#REF!"}]
["4.4.1.o3",null,{"$f":"+#REF!","v":{"$error":"#REF!"}},{"$error":"#REF!"},{"$error":"#REF!"}]
["4.4.1.o4",null,{"$f":"+#REF!","v":{"$error":"#REF!"}},{"$error":"#REF!"},{"$error":"#REF!"}]
["4.4.1.o5",null,{"$f":"+#REF!","v":{"$error":"#REF!"}},{"$error":"#REF!"},{"$error":"#REF!"}]
["4.4.1.o6",null,{"$f":"+#REF!","v":{"$error":"#REF!"}},{"$error":"#REF!"},{"$error":"#REF!"}]
["4.4.1.o7",null,{"$f":"+#REF!","v":{"$error":"#REF!"}},{"$error":"#REF!"},{"$error":"#REF!"}]
["4.4.1.o8",null,{"$f":"+#REF!","v":{"$error":"#REF!"}},{"$error":"#REF!"},{"$error":"#REF!"}]
["4.4.1.p1",null,{"$f":"+#REF!","v":{"$error":"#REF!"}},{"$error":"#REF!"},{"$error":"#REF!"}]
["4.4.1.p2",null,{"$f":"+#REF!","v":{"$error":"#REF!"}},{"$error":"#REF!"},{"$error":"#REF!"}]
["4.4.1.p3",null,{"$f":"+#REF!","v":{"$error":"#REF!"}},{"$error":"#REF!"},{"$error":"#REF!"}]
["4.4.1.p4",null,{"$f":"+#REF!","v":{"$error":"#REF!"}},{"$error":"#REF!"},{"$error":"#REF!"}]
["4.4.1.p5",null,{"$f":"+#REF!","v":{"$error":"#REF!"}},{"$error":"#REF!"},{"$error":"#REF!"}]
["4.4.1.p6",null,{"$f":"+#REF!","v":{"$error":"#REF!"}},{"$error":"#REF!"},{"$error":"#REF!"}]
["4.4.1.p7",null,{"$f":"+#REF!","v":{"$error":"#REF!"}},{"$error":"#REF!"},{"$error":"#REF!"}]
["4.4.1.p8",null,{"$f":"+#REF!","v":{"$error":"#REF!"}},{"$error":"#REF!"},{"$error":"#REF!"}]
["4.4.1.q1",null,{"$f":"+#REF!","v":{"$error":"#REF!"}},{"$error":"#REF!"},{"$error":"#REF!"}]
["4.4.1.q2",null,{"$f":"+#REF!","v":{"$error":"#REF!"}},{"$error":"#REF!"},{"$error":"#REF!"}]
["4.4.1.q3",null,{"$f":"+#REF!","v":{"$error":"#REF!"}},{"$error":"#REF!"},{"$error":"#REF!"}]
["4.4.1.q4",null,{"$f":"+#REF!","v":{"$error":"#REF!"}},{"$error":"#REF!"},{"$error":"#REF!"}]
["4.4.1.q5",null,{"$f":"+#REF!","v":{"$error":"#REF!"}},{"$error":"#REF!"},{"$error":"#REF!"}]
["4.4.1.q6",null,{"$f":"+#REF!","v":{"$error":"#REF!"}},{"$error":"#REF!"},{"$error":"#REF!"}]
["4.4.1.q7",null,{"$f":"+#REF!","v":{"$error":"#REF!"}},{"$error":"#REF!"},{"$error":"#REF!"}]
["4.4.1.q8",null,{"$f":"+#REF!","v":{"$error":"#REF!"}},{"$error":"#REF!"},{"$error":"#REF!"}]
["4.4.2.1",null,{"$f":"+#REF!","v":{"$error":"#REF!"}},{"$error":"#REF!"},{"$error":"#REF!"}]
["4.4.2.2",null,{"$f":"+#REF!","v":{"$error":"#REF!"}},{"$error":"#REF!"},{"$error":"#REF!"}]
["4.4.2.3",null,{"$f":"+#REF!","v":{"$error":"#REF!"}},{"$error":"#REF!"},{"$error":"#REF!"}]
["4.4.2.4",null,{"$f":"+#REF!","v":{"$error":"#REF!"}},{"$error":"#REF!"},{"$error":"#REF!"}]
["4.4.2.5",null,{"$f":"+#REF!","v":{"$error":"#REF!"}},{"$error":"#REF!"},{"$error":"#REF!"}]
["4.4.2.6",null,{"$f":"+#REF!","v":{"$error":"#REF!"}},{"$error":"#REF!"},{"$error":"#REF!"}]
["4.4.2.7",null,{"$f":"+#REF!","v":{"$error":"#REF!"}},{"$error":"#REF!"},{"$error":"#REF!"}]
["4.4.2.8",null,{"$f":"+#REF!","v":{"$error":"#REF!"}},{"$error":"#REF!"},{"$error":"#REF!"}]
["4.4.3",null,{"$f":"+#REF!","v":{"$error":"#REF!"}},null,{"$error":"#REF!"}]
["4.4.3.1a",null,{"$f":"+#REF!","v":{"$error":"#REF!"}},{"$error":"#REF!"},{"$error":"#REF!"}]
["4.4.3.1b",null,{"$f":"+#REF!","v":{"$error":"#REF!"}},{"$error":"#REF!"},{"$error":"#REF!"}]
["4.4.3.1c",null,{"$f":"+#REF!","v":{"$error":"#REF!"}},{"$error":"#REF!"},{"$error":"#REF!"}]
["4.4.3.2a",null,{"$f":"+#REF!","v":{"$error":"#REF!"}},{"$error":"#REF!"},{"$error":"#REF!"}]
["4.4.3.2b",null,{"$f":"+#REF!","v":{"$error":"#REF!"}},{"$error":"#REF!"},{"$error":"#REF!"}]
["4.4.3.2c",null,{"$f":"+#REF!","v":{"$error":"#REF!"}},{"$error":"#REF!"},{"$error":"#REF!"}]
["4.4.3.3a",null,{"$f":"+#REF!","v":{"$error":"#REF!"}},{"$error":"#REF!"},{"$error":"#REF!"}]
["4.4.3.3b",null,{"$f":"+#REF!","v":{"$error":"#REF!"}},{"$error":"#REF!"},{"$error":"#REF!"}]
["4.4.3.3c",null,{"$f":"+#REF!","v":{"$error":"#REF!"}},{"$error":"#REF!"},{"$error":"#REF!"}]
["4.4.4.1",null,{"$f":"+#REF!","v":{"$error":"#REF!"}},{"$error":"#REF!"},{"$error":"#REF!"}]
["4.4.4.1a",null,{"$f":"+#REF!","v":{"$error":"#REF!"}},{"$error":"#REF!"},{"$error":"#REF!"}]
["4.4.4.2",null,{"$f":"+#REF!","v":{"$error":"#REF!"}},{"$error":"#REF!"},{"$error":"#REF!"}]
["4.4.4.2a",null,{"$f":"+#REF!","v":{"$error":"#REF!"}},{"$error":"#REF!"},{"$error":"#REF!"}]
[5.0999999999999996,null,{"$f":"+#REF!","v":{"$error":"#REF!"}},{"$error":"#REF!"},{"$error":"#REF!"}]
["5.1.1",null,{"$f":"+#REF!","v":{"$error":"#REF!"}},{"$error":"#REF!"},{"$error":"#REF!"}]
["5.1.2",null,{"$f":"+#REF!","v":{"$error":"#REF!"}},{"$error":"#REF!"},{"$error":"#REF!"}]
["5.1a",null,{"$f":"+#REF!","v":{"$error":"#REF!"}},{"$error":"#REF!"},{"$f":"IF(C387=\"No declarado\", \"\")","v":{"$error":"#REF!"}}]
["5.1b",null,{"$f":"+#REF!","v":{"$error":"#REF!"}},{"$f":"IF(C388<>\"No declarado\", MID(C388,1,100),\"\")","v":{"$error":"#REF!"}},{"$error":"#REF!"}]
["5.1c",null,{"$f":"+#REF!","v":{"$error":"#REF!"}},{"$error":"#REF!"},{"$error":"#REF!"}]
["5.1d",null,{"$f":"+#REF!","v":{"$error":"#REF!"}},{"$error":"#REF!"},{"$error":"#REF!"}]
["6.1.1.a",null,{"$f":"+#REF!","v":{"$error":"#REF!"}},{"$error":"#REF!"},{"$error":"#REF!"}]
["6.1.1.b",null,{"$f":"+#REF!","v":{"$error":"#REF!"}},{"$error":"#REF!"},{"$error":"#REF!"}]
["6.1.2",null,{"$f":"+#REF!","v":{"$error":"#REF!"}},{"$error":"#REF!"},{"$error":"#REF!"}]
["6.2.1a",null,{"$f":"+#REF!","v":{"$error":"#REF!"}},{"$error":"#REF!"},{"$error":"#REF!"}]
["6.2.1b",null,{"$f":"+#REF!","v":{"$error":"#REF!"}},{"$error":"#REF!"},{"$error":"#REF!"}]
["6.2.1.1",null,{"$f":"+#REF!","v":{"$error":"#REF!"}},{"$error":"#REF!"},{"$error":"#REF!"}]
["6.2.2",null,{"$f":"+#REF!","v":{"$error":"#REF!"}},{"$error":"#REF!"},{"$error":"#REF!"}]
["6.2.2a",null,{"$f":"+#REF!","v":{"$error":"#REF!"}},{"$error":"#REF!"},{"$error":"#REF!"}]
["6.2.3",null,{"$f":"+#REF!","v":{"$error":"#REF!"}},null,{"$error":"#REF!"}]

{"sheet":"Hoja 1","index":7,"n_rows":116,"n_cols":16,"rows_kept":116,"cut":false,"hidden":true,"merged":[]}
[null,"subsistemas","Personas",null,"Año",null,null,"Trimestre",null,null,"Mes",null,null,"Día","Órden","Atributo"]
[null,"Demográfica y Social",1,1,1980,null,1,"Primer",null,1,"Enero ",null,null,1,"Federal ","No aplica"]
[null,"Económica",2,2,1981,null,2,"Segundo",null,2,"Febrero",null,null,2,"Estatal","Ninguno"]
[null,"Geográfica y del Medio Ambiente",3,3,1982,null,3,"Tercer",null,3,"Marzo",null,null,3,"Municipal"]
[null,"Gobierno, Seguridad Pública e Impartición de Justicia",4,4,1983,null,4,"Cuarto",null,4,"Abril",null,null,4]
[null,null,5,5,1984,null,null,null,null,5,"Mayo",null,null,5]
[null,null,6,6,1985,null,null,null,null,6,"Junio",null,null,6]
[null,null,7,7,1986,null,null,null,null,7,"Julio",null,null,7]
[null,null,8,8,1987,null,null,null,null,8,"Agosto",null,null,8]
[null,null,9,9,1988,null,null,null,null,9,"Septiembre",null,null,9]
[null,null,10,10,1989,null,null,null,null,10,"Octubre",null,null,10]
[null,null,11,11,1990,null,null,null,null,11,"Noviembre",null,null,11]
[null,null,12,12,1991,null,null,null,null,12,"Diciembre",null,null,12]
[null,null,13,13,1992,null,null,null,null,null,null,null,null,13]
[null,null,14,14,1993,null,null,null,null,null,null,null,null,14]
[null,null,15,15,1994,null,null,null,null,null,null,null,null,15]
[null,null,16,16,1995,null,null,null,null,null,null,null,null,16]
[null,null,17,17,1996,null,null,null,null,null,null,null,null,17]
[null,null,18,18,1997,null,null,null,null,null,null,null,null,18]
[null,null,19,19,1998,null,null,null,null,null,null,null,null,19]
[null,null,20,20,1999,null,null,null,null,null,null,null,null,20]
[null,null,21,21,2000,null,null,null,null,null,null,null,null,21]
[null,null,22,22,2001,null,null,null,null,null,null,null,null,22]
[null,null,23,23,2002,null,null,null,null,null,null,null,null,23]
[null,null,24,24,2003,null,null,null,null,null,null,null,null,24]
[null,null,25,25,2004,null,null,null,null,null,null,null,null,25]
[null,null,26,26,2005,null,null,null,null,null,null,null,null,26]
[null,null,27,27,2006,null,null,null,null,null,null,null,null,27]
[null,null,28,28,2007,null,null,null,null,null,null,null,null,28]
[null,null,29,29,2008,null,null,null,null,null,null,null,null,29]
[null,null,30,30,2009,null,null,null,null,null,null,null,null,30]
[null,null,31,31,2010,null,null,null,null,null,null,null,null,31]
[null,null,32,32,2011]
[null,null,33,33,2012]
[null,null,34,34,2013]
[null,null,35,35,2014]
[null,null,36,36,2015]
[null,null,37]
[null,null,38]
[null,null,39]
[null,null,40]
[null,null,41]
[null,null,42]
[null,null,43]
[null,null,44]
[null,null,45]
[null,null,46]
[null,null,47]
[null,null,48]
[null,null,49]
[null,null,50]
[null,null,51]
[null,null,52]
[null,null,53]
[null,null,54]
[null,null,55]
[null,null,56]
[null,null,57]
[null,null,58]
[null,null,59]
[null,null,60]
[null,null,61]
[null,null,62]
[null,null,63]
[null,null,64]
[null,null,65]
[null,null,66]
[null,null,67]
[null,null,68]
[null,null,69]
[null,null,70]
[null,null,71]
[null,null,72]
[null,null,73]
[null,null,74]
[null,null,75]
[null,null,76]
[null,null,77]
[null,null,78]
[null,null,79]
[null,null,80]
[null,null,81]
[null,null,82]
[null,null,83]
[null,null,84]
[null,null,85]
[null,null,86]
[null,null,87]
[null,null,88]
[null,null,89]
[null,null,90]
[null,null,91]
[null,null,92]
[null,null,93]
[null,null,94]
[null,null,95]
[null,null,96]
[null,null,97]
[null,null,98]
[null,null,99]
[null,null,100]
[null,null,101]
[null,null,102]
[null,null,103]
[null,null,104]
[null,null,105]
[null,null,106]
[null,null,107]
[null,null,108]
[null,null,109]
[null,null,110]
[null,null,111]
[null,null,112]
[null,null,113]
[null,null,114]
[null,null,115]

{"sheet":" ","index":8,"n_rows":0,"n_cols":0,"rows_kept":0,"cut":false,"hidden":true,"merged":[]}

{"sheet":"Ficha 1","index":9,"n_rows":54,"n_cols":5,"rows_kept":54,"cut":false,"hidden":true,"merged":[[30,1,30,9],[3,3,3,7],[4,3,4,7],[18,1,18,9],[20,1,21,3],[20,4,21,9],[12,3,12,9],[14,3,14,7],[10,3,10,8],[8,3,8,9],[16,3,16,4],[22,1,23,3],[22,4,23,9],[24,1,25,3],[49,4,49,9],[31,4,31,9],[32,4,33,9],[35,4,36,9],[44,4,44,9],[45,4,45,7],[39,4,39,9],[42,4,42,6],[43,4,43,9],[31,1,37,3],[51,4,51,9],[52,4,52,6],[26,1,27,3],[26,4,27,9],[39,1,53,3],[29,1,29,9],[53,4,53,9],[50,4,50,8],[34,4,34,9],[41,4,41,9],[46,4,46,9],[47,4,47,6],[40,4,40,7],[37,4,37,9],[48,4,48,9]]}
[]
[]
[]
[null,null,null,"Ficha técnica para presentar la propuesta de                                                                                            Información de Interés Nacional"]
[null,null,null,"Información Estadística "]
[]
[]
[]
[null,"a) Información propuesta:",null," "]
[]
[null,"b) Tematica:",null," "]
[]
[null,"c) Proponente:",null," "]
[null,null,null," "]
[null,"d) Subsistema:",null," "]
[null,null,null," "]
[null,"e) Fecha de presentación de propuesta:",null," "]
[]
[null,"     A) DATOS DE IDENTIFICACIÓN DEL PROYECTO QUE GENERA LA INFORMACIÓN E INSTITUCIÓN RESPONSABLE"]
[]
[null,"1. Nombre del proyecto estadístico propuesto:",null,null," "]
[]
[null,"2. Nombre de la institución responsable del proyecto:",null,null," "]
[]
[null,"3.Inscripción del proyecto en el Registro Estadístico Nacional:"]
[]
[null,"4. Otras instituciones participantes en el proyecto:",null,null," "]
[]
[]
[null,"     B) FUNDAMENTOS DEL PROYECTO"]
[null,"Políticas públicas de alcance nacional"]
[null,"5. La información estadística propuesta \n     debe generarse porque lo mandata:",null,null,"Constitución política de los Estados Unidos Mexicanos\nTítulo, capítulo, sección, artículo, fracción, párrafo, fecha de última publicación y observaciones"]
[null,null,null,null," "]
[]
[null,null,null,null,"Ley secundaria\nTítulo, capítulo, sección, artículo, fracción, párrafo, fecha de última publicación y observaciones"]
[null,null,null,null," "]
[]
[]
[]
[null,"6. Uso de la información generada  para \n      apoyar el programa de la institución u otro interinstitucional",null,null,"Plan Nacional de Desarrollo"]
[null,null,null,null,"\nEspecifique el nombre del (los) programa (s) y los objetivos, metas e indicadores relacionados     "]
[null,null,null,null," "]
[null,null,null,null,"Objetivos, metas e indicadores relacionados"]
[null,null,null,null," "]
[null,null,null,null,"Programa sectorial, regional o especial"]
[null,null,null,null,"\nEspecifique el nombre del (los) programa (s) y los objetivos, metas e indicadores relacionados     "]
[null,null,null,null," "]
[null,null,null,null,"Objetivos, metas e indicadores relacionados"]
[null,null,null,null," "]
[null,null,null,null,"Otro ordenamiento legal"]
[null,null,null,null,"Nombre del ordenamiento, especificaciones, fecha de última publicación y observaciones."]
[null,null,null,null," "]
[null,null,null,null,"Objetivos, metas e indicadores relacionados"]
[null,null,null,null," "]

{"sheet":"Ficha 2","index":10,"n_rows":59,"n_cols":8,"rows_kept":59,"cut":false,"hidden":true,"merged":[[3,3,3,8],[4,3,4,8],[28,1,29,3],[28,4,29,9],[9,1,9,9],[20,7,20,9],[21,4,21,6],[21,7,21,9],[15,1,16,3],[15,4,16,9],[18,1,18,9],[19,1,21,3],[20,4,20,6],[8,1,8,9],[10,1,12,3],[11,4,12,9],[58,1,60,3],[49,1,52,3],[58,4,60,9],[32,1,32,9],[31,1,31,9],[33,4,36,9],[40,7,47,9],[38,1,40,3],[49,4,52,9],[55,1,56,3],[55,4,56,9],[38,7,39,9],[40,4,47,6],[53,1,53,9],[24,7,24,9],[22,4,22,6],[23,4,23,6],[24,4,24,6],[22,7,22,9],[23,7,23,9],[25,7,25,9],[34,1,35,3],[37,1,37,9],[38,4,39,6],[48,1,48,9],[25,4,25,6]]}
[]
[]
[]
[null,null,null,"Ficha técnica para presentar la propuesta de                                                                                            Información de Interés Nacional"]
[null,null,null,"Información Estadística "]
[]
[]
[]
[null,"     C) ATENCIÓN DE EMERGENCIAS O COMPROMISOS INTERNACIONALES"]
[null,"Protección civil y prevención de desastres"]
[null,"7. Uso de la información por sistemas de \n    protección civil o de prevención de desastres \n    naturales"]
[]
[]
[]
[]
[null,"8. Organismo que utiliza el proyercto para\n     prevenir o atender desastres naturales"]
[]
[]
[null,"Compromisos internacionales"]
[null,"9. Uso de la información generada para atender \n      compromisos establecidos a nivel \n      internacional"]
[null,null,null,null,"Nombre del acuerdo, tratado o compromiso:",null,null,"Nombre del organismo o país:"]
[null,null,null,null,1,null,null," "]
[null,null,null,null,2,null,null," "]
[null,null,null,null,3,null,null," "]
[null,null,null,null,4,null,null," "]
[null,null,null,null,5,null,null," "]
[]
[]
[null,"10. Validación de la\n        Secretaría de Relaciones Exteriores"]
[]
[]
[null,"     D) METODOLOGÍA DEL PROYECTO ESTADÍSTICO QUE GENERA LA INFORMACIÓN PROPUESTA:"]
[null,"Método de generación aplicado"]
[]
[null,"11. Método de generación\n         de información  estadística"]
[]
[]
[null,"Soporte técnico"]
[null,"12. Estándares o recomendaciones de \n        organismos nacionales o \n        internacionales aplicados",null,null,"Nombre",null,null,"Organismo elaborador"]
[]
[null,null,null,null," "]
[]
[]
[]
[]
[]
[]
[]
[null,"Unidad de observación"]
[null,"13. Unidad de observación"]
[]
[]
[]
[null,"Periodicidad o frecuencia de ejecución"]
[]
[null,"14. Periodicidad o frecuencia de ejecución"]
[]
[]
[null,"15. Cobertura temporal (Datos más recientes)",null,null," "]

{"sheet":"Ficha 3","index":11,"n_rows":156,"n_cols":9,"rows_kept":156,"cut":false,"hidden":true,"merged":[[51,3,51,12],[52,3,52,12],[48,3,48,12],[50,3,50,12],[66,3,66,12],[72,3,72,12],[70,3,70,12],[69,3,69,12],[67,3,67,12],[68,3,68,12],[63,3,63,4],[3,3,3,10],[4,3,4,10],[30,3,30,12],[47,3,47,12],[36,3,36,12],[37,3,44,12],[49,3,49,12],[10,3,10,12],[9,3,9,4],[9,8,9,12],[12,3,12,12],[14,3,14,12],[28,3,28,12],[15,3,15,12],[16,3,16,12],[13,3,13,12],[8,3,8,12],[11,3,11,12],[17,3,17,12],[19,3,26,12],[18,3,18,12],[29,3,29,12],[31,3,31,12],[32,3,32,12],[163,3,163,12],[164,3,164,12],[157,3,157,12],[158,3,158,12],[159,3,159,12],[160,3,160,12],[128,3,135,12],[91,3,91,12],[162,3,162,12],[123,3,123,12],[124,3,124,12],[103,3,103,12],[118,3,118,12],[122,3,122,12],[121,3,121,12],[120,3,120,12],[102,3,102,12],[161,3,161,12],[155,3,156,6],[143,3,143,12],[8,1,144,2],[140,3,140,12],[136,3,136,6],[71,3,71,12],[137,3,137,12],[64,3,64,12],[65,3,65,12],[146,3,146,12],[147,3,154,12],[139,3,139,12],[138,3,138,12],[144,3,144,12],[141,3,141,12],[142,3,142,12],[100,3,100,12],[101,3,101,12],[90,3,90,12],[34,3,34,12],[35,3,35,12],[45,3,45,4],[85,3,85,12],[125,3,125,12],[126,3,126,12],[127,3,127,12],[27,3,27,12],[89,3,89,12],[86,3,86,12],[119,3,119,12],[92,3,99,12],[110,3,117,12],[104,3,104,12],[107,3,107,12],[108,3,108,12],[105,3,105,12],[106,3,106,12],[109,3,109,12],[87,3,87,12],[88,3,88,12],[84,3,84,12],[83,3,83,12],[81,3,81,8],[82,3,82,12],[46,3,46,12],[33,3,33,12],[55,3,62,12],[54,3,54,12],[73,3,80,12],[53,3,53,12]]}
[]
[]
[]
[null,null,null,"Ficha técnica para presentar la propuesta de                                                                                            Información de Interés Nacional"]
[null,null,null,"Información Estadística "]
[]
[]
[]
[null,"16.  Documentos\n         disponibles en el\n         proyecto (Más \n         recientes)",null,"Documento   /   Año de elaboración   /   Institución que lo elaboró"]
[null,null,null,"PLANEACIÓN GENERAL",null,null,null,null,"(Se anexa un ejemplar de cada documento señalado)"]
[null,null,null," "]
[null,null,null," "]
[null,null,null," "]
[null,null,null," "]
[null,null,null," "]
[null,null,null," "]
[null,null,null," "]
[null,null,null," "]
[null,null,null,"MARCO CONCEPTUAL"]
[null,null,null," "]
[]
[]
[]
[]
[]
[]
[]
[null,null,null,"CRITERIOS DE VALIDACIÓN "]
[null,null,null," "]
[null,null,null," "]
[null,null,null," "]
[null,null,null," "]
[null,null,null," "]
[null,null,null," "]
[null,null,null," "]
[null,null,null," "]
[null,null,null,"GLOSARIOS"]
[]
[]
[]
[]
[]
[]
[]
[]
[null,null,null,"CLASIFICADORES"]
[]
[]
[]
[]
[]
[]
[]
[]
[null,null,null,"CUESTIONARIOS"]
[]
[]
[]
[]
[]
[]
[]
[]
[null,null,null,"MARCO DE MUESTREO"]
[]
[]
[]
[]
[]
[]
[]
[]
[null,null,null,"MÉTODO PARA LA DETERMINACIÓN DEL TAMAÑO Y SELECCIÓN DE LA MUESTRA "]
[]
[]
[]
[]
[]
[]
[]
[]
[null,null,null,"RESULTADOS DEL DISEÑO DE LA MUESTRA"]
[]
[]
[]
[]
[]
[]
[]
[]
[null,null,null,"MANUALES OPERATIVOS "]
[null,null,null,"Manuales de capacitación"]
[]
[]
[]
[]
[]
[]
[]
[]
[null,null,null,"Instructivos de llenado de cuestionarios"]
[]
[]
[]
[]
[]
[]
[]
[]
[null,null,null,"Manuales de procedimientos para la captación de datos"]
[]
[]
[]
[]
[]
[]
[]
[]
[null,null,null,"Manuales de procedimientos para la captura y procesamiento de datos"]
[]
[]
[]
[]
[]
[]
[]
[]
[null,null,null,"Manuales para la presentación de resultados"]
[]
[]
[]
[]
[]
[]
[]
[]
[null,null,null,"SISTEMA DE CAPTURA DE DATOS"]
[]
[]
[]
[]
[]
[]
[]
[]
[]
[null,null,null,"DOCUMENTACIÓN DE PRUEBAS Y RESULTADOS"]
[]
[]
[]
[]
[]
[]
[]
[]
[null,null,null,"DOCUMENTACIÓN DEL PROYECTO Y RESULTADOS"]

{"sheet":"Ficha 4","index":12,"n_rows":56,"n_cols":9,"rows_kept":56,"cut":false,"hidden":true,"merged":[[54,4,54,5],[29,4,30,9],[31,4,31,5],[32,4,33,9],[35,1,38,3],[34,1,34,9],[35,4,36,5],[35,8,36,9],[37,6,41,7],[37,8,41,9],[43,8,43,9],[51,8,51,9],[52,6,52,7],[42,6,42,7],[42,4,42,5],[43,4,43,5],[3,3,3,8],[4,3,4,8],[28,4,28,5],[56,1,56,3],[8,1,9,3],[8,7,9,9],[10,4,10,5],[11,4,12,9],[13,4,13,5],[14,4,15,9],[16,4,16,5],[17,4,18,9],[19,4,19,5],[37,4,41,5],[35,6,36,7],[51,6,51,7],[47,4,50,5],[20,4,21,9],[22,4,22,5],[23,4,24,9],[25,4,25,5],[26,4,27,9],[47,6,50,9],[53,6,53,7],[43,6,43,7],[42,8,42,9],[51,1,55,3],[46,4,46,5],[46,6,46,9],[52,4,52,5],[53,4,53,5],[55,6,55,7],[54,8,54,9],[55,8,55,9],[53,8,53,9],[54,6,54,7],[44,1,47,3],[44,4,45,5],[44,6,45,9]]}
[]
[]
[]
[null,null,null,"Ficha técnica para presentar la propuesta de                                                                                            Información de Interés Nacional"]
[null,null,null,"Información Estadística "]
[]
[]
[]
[null,"17. Indicadores utilizados para medir la \n      calidad de los procesos",null,null,null,null,null,"(Se anexa metodología de cálculo de los  indicadores utilizados y resultados del operativo más reciente disponibles)"]
[]
[null,null,null,null,"PLANEACIÓN DEL PROYECTO"]
[null,null,null,null," "]
[]
[null,null,null,null,"DISEÑO CONCEPTUAL"]
[null,null,null,null," "]
[]
[null,null,null,null,"DISEÑO DE LA MUESTRA"]
[null,null,null,null," "]
[]
[null,null,null,null,"DISEÑO DE LA CAPTACIÓN "]
[null,null,null,null," "]
[]
[null,null,null,null,"DISEÑO DEL PROCESAMIENTO"]
[null,null,null,null," "]
[]
[null,null,null,null,"OPERATIVO DE CAPTACIÓN "]
[null,null,null,null," "]
[]
[null,null,null,null,"PROCESAMIENTO Y LIBERACIÓN DE DATOS"]
[null,null,null,null," "]
[]
[null,null,null,null,"PRESENTACIÓN Y DIVULGACIÓN DE RESULTADOS"]
[null,null,null,null," "]
[]
[null,"D.4 Soporte técnico"]
[null,"18. Disponibilidad de certificación  o \n      validación dada por algún organismo \n      nacional o internacional",null,null,"Fase o actividad",null,"Organismo certificador",null,"Periodo que cubre"]
[]
[null,null,null,null," ",null," ",null," "]
[]
[]
[]
[]
[null,null,null,null," ",null," ",null," "]
[null,null,null,null," ",null," ",null," "]
[null,"19. Tipo de asistencia de organismos \n       nacionales o internacionales",null,null,"Apoyo técnico",null,"Capacitación"]
[]
[null,null,null,null," ",null," "]
[null,null,null,null," ",null," "]
[]
[]
[]
[null,"20. Medio de almacenamiento \n        de la información",null,null,null,null,"Recopilación ",null,"Almacenamiento"]
[null,null,null,null,"Formatos o expedientes impresos"]
[null,null,null,null,"Archivos electrónicos en hoja de cálculo",null," "]
[null,null,null,null,"Base de datos",null," "]
[null,null,null,null,"Otro",null," "]

{"sheet":"Hoja1","index":13,"n_rows":0,"n_cols":0,"rows_kept":0,"cut":false,"hidden":true,"merged":[]}

{"sheet":"Hoja2","index":14,"n_rows":0,"n_cols":0,"rows_kept":0,"cut":false,"hidden":false,"merged":[]}